Workbook

Sheet @ (hidden)
D1: ММ | E1: ММ | F1: КГ/М.КВ. | Q1: ГРН. | R1: ГРН. | S1: EURO | T1: USD | W1: ГРН. | X1: ГРН. | Y1: EURO | Z1: USD
B2: ПЛИТА_ТИП | C2: ОСНОВА | D2: ТОЛЩ. | E2: КРОМКА | F2: ВЕС | H2: КРОМКА_A | J2: ШПОН_ДЕРЕВО | K2: ДЕРЕВО | M2: КУРС_EURO (ПРАЙС) | N2: REM | P2: ШПОН_ОТДЕЛКА_ПЛИТА | Q2: СЕБ.СТ. | R2: РОЗН.СТ. | S2: РОЗН.СТ. | T2: РОЗН.СТ. | V2: КОМКА_ОТДЕЛКА | W2: СЕБ.СТ. | X2: РОЗН.СТ. | Y2: РОЗН.СТ. | Z2: РОЗН.СТ. | AB2: ВАЛЮТА | AC2: МЕСТО | AE2: ШПОН_ОТДЕЛКА_ПЛИТА | AF2: ПЛИТА | AG2: ШПОН | AH2: ОТДЕЛКА
B3: ДСП 10, AB/лам. | C3: ДСП | D3: 10 | E3: 22 | F3: 7.5 | H3: =КРОМКА_A0 -> нет | J3: ДУБ (тангентальный) | K3: ДУБ | M3: 33 | N3: 33 | P3: =K3&", "&H25&", "&B3 -> ДУБ, Б/О, ДСП 10, AB/лам. | R3: =ROUNDUP(Q3*К_НАЦЕНКА,0) -> 0 | S3: =ROUNDUP(R3/EURO_PRISE,0) -> 0 | T3: =ROUNDUP(R3/USD_PRISE,0) -> 0 | V3: ДУБ 22, Б/О | X3: =ROUNDUP(W3*К_НАЦЕНКА,1) -> 0 | Y3: =ROUNDUP(X3/EURO_PRISE,2) -> 0 | Z3: =ROUNDUP(X3/USD_PRISE,2) -> 0 | AB3: EURO | AC3: 4 | AE3: ДУБ, Б/О, ДСП 10, AB/лам.
B4: ДСП 16, AB/AB | C4: ДСП | D4: 16 | E4: 22 | F4: 11.68 | H4: =КРОМКА_A1 -> X | J4: ДУБ (радиальный) | K4: ДУБ | P4: =K3&", "&H25&", "&B4 -> ДУБ, Б/О, ДСП 16, AB/AB | R4: 0 | S4: 0 | T4: 0 | V4: ДУБ 28, Б/О | X4: 0 | Y4: 0 | Z4: 0 | AB4: USD | AC4: 5 | AE4: ДУБ, Б/О, ДСП 16, AB/AB
B5: ДСП 16, AB/BC | C5: ДСП | D5: 16 | E5: 22 | F5: 11.68 | H5: =КРОМКА_A2 -> X + X | J5: ЯСЕНЬ (тангентальный) | K5: ЯСЕНЬ | M5: КУРС_USD (ПРАЙС) | N5: REM | P5: =K3&", "&H25&", "&B5 -> ДУБ, Б/О, ДСП 16, AB/BC | R5: 0 | S5: 0 | T5: 0 | V5: ДУБ 33, Б/О | X5: 0 | Y5: 0 | Z5: 0 | AE5: ДУБ, Б/О, ДСП 16, AB/BC
B6: ДСП 16, AB/карт. | C6: ДСП | D6: 16 | E6: 22 | F6: 11.68 | H6: КРОМКА_А0 | J6: ЯСЕНЬ (радиальный) | K6: ЯСЕНЬ | M6: 27 | N6: 27 | P6: =K3&", "&H25&", "&B6 -> ДУБ, Б/О, ДСП 16, AB/карт. | R6: 0 | S6: 0 | T6: 0 | V6: ДУБ 42, Б/О | X6: 0 | Y6: 0 | Z6: 0 | AE6: ДУБ, Б/О, ДСП 16, AB/карт.
B7: ДСП 16, BC/BC | C7: ДСП | D7: 16 | E7: 22 | F7: 11.68 | H7: нет | J7: ОТДЕЛКА_ДЕКОРЫ | K7: ОТДЕЛКА | P7: =K3&", "&H25&", "&B7 -> ДУБ, Б/О, ДСП 16, BC/BC | R7: 0 | S7: 0 | T7: 0 | V7: ДУБ 22, ЭМАЛЬ | X7: 0 | Y7: 0 | Z7: 0 | AE7: ДУБ, Б/О, ДСП 16, BC/BC
B8: ДСП 18, AB/AB | C8: ДСП | D8: 18 | E8: 22 | F8: 13.25 | H8: КРОМКА_А1 | J8: БЕЗ ОТДЕЛКИ | K8: Б/О | M8: ОПТОВАЯ НАЦЕНКА | N8: REM | P8: =K3&", "&H25&", "&B8 -> ДУБ, Б/О, ДСП 18, AB/AB | R8: 0 | S8: 0 | T8: 0 | V8: ДУБ 28, ЭМАЛЬ | X8: 0 | Y8: 0 | Z8: 0 | AE8: ДУБ, Б/О, ДСП 18, AB/AB
B9: ДСП 18, AB/BC | C9: ДСП | D9: 18 | E9: 22 | F9: 13.25 | H9: X | J9: ЭМАЛЬ, декор БЕЛЫЙ | K9: ЭМАЛЬ | M9: 1.5 | N9: 1.4 | P9: =K3&", "&H25&", "&B9 -> ДУБ, Б/О, ДСП 18, AB/BC | R9: 0 | S9: 0 | T9: 0 | V9: ДУБ 33, ЭМАЛЬ | X9: 0 | Y9: 0 | Z9: 0 | AE9: ДУБ, Б/О, ДСП 18, AB/BC
B10: ДСП 18, AB/карт. | C10: ДСП | D10: 18 | E10: 22 | F10: 13.25 | H10: КРОМКА_А2 | J10: ЛАК, декор ЧЁРНЫЙ | K10: ЛАК | P10: =K3&", "&H25&", "&B10 -> ДУБ, Б/О, ДСП 18, AB/карт. | R10: 0 | S10: 0 | T10: 0 | V10: ДУБ 42, ЭМАЛЬ | X10: 0 | Y10: 0 | Z10: 0 | AE10: ДУБ, Б/О, ДСП 18, AB/карт.
B11: ДСП 22, AB/AB | C11: ДСП | D11: 22 | E11: 28 | F11: 15.83 | H11: X + X | J11: ЛАК, декор ОЛЬМОНЕРО | K11: ЛАК | M11: РОЗНИЧНАЯ НАЦЕНКА | N11: REM | P11: =K3&", "&H25&", "&B11 -> ДУБ, Б/О, ДСП 22, AB/AB | R11: 0 | S11: 0 | T11: 0 | V11: ДУБ 22, ЛАК | X11: 0 | Y11: 0 | Z11: 0 | AE11: ДУБ, Б/О, ДСП 22, AB/AB
B12: ДСП 22, AB/BС | C12: ДСП | D12: 22 | E12: 28 | F12: 15.83 | J12: ЛАК, декор МАХАГОНИ БРАУН | K12: ЛАК | M12: 1.48 | N12: 1.3356 | P12: =K3&", "&H25&", "&B12 -> ДУБ, Б/О, ДСП 22, AB/BС | R12: 0 | S12: 0 | T12: 0 | V12: ДУБ 28, ЛАК | X12: 0 | Y12: 0 | Z12: 0 | AE12: ДУБ, Б/О, ДСП 22, AB/BС
B13: ДСП 25, AB/AB | C13: ДСП | D13: 25 | E13: 28 | F13: 18.32 | H13: КРОМКА_B | J13: ЛАК, декор СПЕССАРТ | K13: ЛАК | P13: =K3&", "&H25&", "&B13 -> ДУБ, Б/О, ДСП 25, AB/AB | R13: 0 | S13: 0 | T13: 0 | V13: ДУБ 33, ЛАК | X13: 0 | Y13: 0 | Z13: 0 | AE13: ДУБ, Б/О, ДСП 25, AB/AB
B14: ДСП 25, AB/BС | C14: ДСП | D14: 25 | E14: 28 | F14: 18.32 | H14: =H18 -> нет | J14: ЛАК, декор ТАБАК ДЫМЧАТЫЙ | K14: ЛАК | M14: ОПТ.+РОЗН. НАЦЕНКА | N14: REM | P14: =K3&", "&H25&", "&B14 -> ДУБ, Б/О, ДСП 25, AB/BС | R14: 0 | S14: 0 | T14: 0 | V14: ДУБ 42, ЛАК | X14: 0 | Y14: 0 | Z14: 0 | AE14: ДУБ, Б/О, ДСП 25, AB/BС
B15: ДСП 32, AB/AB | C15: ДСП | D15: 32 | E15: 42 | F15: 23.36 | H15: =H20 -> Y | J15: ЛАК, декор ШИЛЬФ МАРОН | K15: ЛАК | M15: =К_ОПТ*К_РОЗ -> 2.22 | N15: 1.86984 | P15: =K3&", "&H25&", "&B15 -> ДУБ, Б/О, ДСП 32, AB/AB | R15: 0 | S15: 0 | T15: 0 | V15: ДУБ 22, МАСЛО | X15: 0 | Y15: 0 | Z15: 0 | AE15: ДУБ, Б/О, ДСП 32, AB/AB
B16: ДСП 32, AB/BС | C16: ДСП | D16: 32 | E16: 42 | F16: 23.36 | H16: =H22 -> Y + Y | J16: ЛАК, декор РОВЕРА НАТУРАЛ | K16: ЛАК | P16: =K3&", "&H25&", "&B16 -> ДУБ, Б/О, ДСП 32, AB/BС | R16: 0 | S16: 0 | T16: 0 | V16: ДУБ 28, МАСЛО | X16: 0 | Y16: 0 | Z16: 0 | AE16: ДУБ, Б/О, ДСП 32, AB/BС
B17: ДСП 36, AB/AB | C17: ДСП | D17: 36 | E17: 42 | F17: 26.58 | H17: КРОМКА_B0 | J17: МАСЛО, декор ПАЛИСАНДР | K17: МАСЛО | M17: ДАТА ИЗМЕНЕНИЯ | P17: =K3&", "&H25&", "&B17 -> ДУБ, Б/О, ДСП 36, AB/AB | R17: 0 | S17: 0 | T17: 0 | V17: ДУБ 33, МАСЛО | X17: 0 | Y17: 0 | Z17: 0 | AE17: ДУБ, Б/О, ДСП 36, AB/AB
B18: ДСП 36, AB/BС | C18: ДСП | D18: 36 | E18: 42 | F18: 26.58 | H18: нет | J18: МАСЛО, декор ЦЕМЕНТ | K18: МАСЛО | M18: РЕДАКЦИЯ : 15.02.2018 | P18: =K3&", "&H25&", "&B18 -> ДУБ, Б/О, ДСП 36, AB/BС | R18: 0 | S18: 0 | T18: 0 | V18: ДУБ 42, МАСЛО | X18: 0 | Y18: 0 | Z18: 0 | AE18: ДУБ, Б/О, ДСП 36, AB/BС
B19: МДФ 9, AB/AB | C19: МДФ | D19: 9 | E19: 22 | F19: 6.86 | H19: КРОМКА_B1 | J19: ОТДЕЛКА_ДУБ + ДЕКОР | K19: ОТДЕЛКА | P19: =K3&", "&H25&", "&B19 -> ДУБ, Б/О, МДФ 9, AB/AB | R19: 0 | S19: 0 | T19: 0 | V19: ЯСЕНЬ 22, Б/О | X19: 0 | Y19: 0 | Z19: 0 | AE19: ДУБ, Б/О, МДФ 9, AB/AB
B20: МДФ 9, AB/BC | C20: МДФ | D20: 9 | E20: 22 | F20: 6.86 | H20: Y | J20: БЕЗ ОТДЕЛКИ | K20: Б/О | P20: =K3&", "&H25&", "&B20 -> ДУБ, Б/О, МДФ 9, AB/BC | R20: 0 | S20: 0 | T20: 0 | V20: ЯСЕНЬ 28, Б/О | X20: 0 | Y20: 0 | Z20: 0 | AE20: ДУБ, Б/О, МДФ 9, AB/BC
B21: МДФ 9, BC/BC | C21: МДФ | D21: 9 | E21: 22 | F21: 6.86 | H21: КРОМКА_B2 | J21: ЭМАЛЬ, декор БЕЛЫЙ | K21: ЭМАЛЬ | P21: =K3&", "&H25&", "&B21 -> ДУБ, Б/О, МДФ 9, BC/BC | R21: 0 | S21: 0 | T21: 0 | V21: ЯСЕНЬ 33, Б/О | X21: 0 | Y21: 0 | Z21: 0 | AE21: ДУБ, Б/О, МДФ 9, BC/BC
B22: МДФ 19, AB/AB | C22: МДФ | D22: 19 | E22: 22 | F22: 14.56 | H22: Y + Y | J22: ЛАК, декор ЧЁРНЫЙ | K22: ЛАК | P22: =K3&", "&H25&", "&B22 -> ДУБ, Б/О, МДФ 19, AB/AB | R22: 0 | S22: 0 | T22: 0 | V22: ЯСЕНЬ 42, Б/О | X22: 0 | Y22: 0 | Z22: 0 | AE22: ДУБ, Б/О, МДФ 19, AB/AB
B23: МДФ 19, AB/BC | C23: МДФ | D23: 19 | E23: 22 | F23: 14.56 | J23: ЛАК, декор ОЛЬМОНЕРО | K23: ЛАК | P23: =K3&", "&H25&", "&B23 -> ДУБ, Б/О, МДФ 19, AB/BC | R23: 0 | S23: 0 | T23: 0 | V23: ЯСЕНЬ 22, ЭМАЛЬ | X23: 0 | Y23: 0 | Z23: 0 | AE23: ДУБ, Б/О, МДФ 19, AB/BC
B24: МДФ 19, AB/карт. | C24: МДФ | D24: 19 | E24: 22 | F24: 14.56 | H24: ОТДЕЛКА | J24: ЛАК, декор МАХАГОНИ БРАУН | K24: ЛАК | P24: =K3&", "&H25&", "&B24 -> ДУБ, Б/О, МДФ 19, AB/карт. | R24: 0 | S24: 0 | T24: 0 | V24: ЯСЕНЬ 28, ЭМАЛЬ | X24: 0 | Y24: 0 | Z24: 0 | AE24: ДУБ, Б/О, МДФ 19, AB/карт.
B25: МДФ 26, AB/AB | C25: МДФ | D25: 26 | E25: 33 | F25: 21.63 | H25: Б/О | J25: ЛАК, декор СПЕССАРТ | K25: ЛАК | P25: =K3&", "&H25&", "&B25 -> ДУБ, Б/О, МДФ 26, AB/AB | R25: 0 | S25: 0 | T25: 0 | V25: ЯСЕНЬ 33, ЭМАЛЬ | X25: 0 | Y25: 0 | Z25: 0 | AE25: ДУБ, Б/О, МДФ 26, AB/AB
B26: МДФ 26, AB/BC | C26: МДФ | D26: 26 | E26: 33 | F26: 21.63 | H26: ЭМАЛЬ | J26: ЛАК, декор ТАБАК ДЫМЧАТЫЙ | K26: ЛАК | P26: =K3&", "&H25&", "&B26 -> ДУБ, Б/О, МДФ 26, AB/BC | R26: 0 | S26: 0 | T26: 0 | V26: ЯСЕНЬ 42, ЭМАЛЬ | X26: 0 | Y26: 0 | Z26: 0 | AE26: ДУБ, Б/О, МДФ 26, AB/BC
B27: МДФ 37, AB/AB | C27: МДФ | D27: 37 | E27: 42 | F27: 28.85 | H27: ЛАК | J27: ЛАК, декор ШИЛЬФ МАРОН | K27: ЛАК | P27: =K3&", "&H25&", "&B27 -> ДУБ, Б/О, МДФ 37, AB/AB | R27: 0 | S27: 0 | T27: 0 | V27: ЯСЕНЬ 22, ЛАК | X27: 0 | Y27: 0 | Z27: 0 | AE27: ДУБ, Б/О, МДФ 37, AB/AB
B28: МДФ 37, AB/BC | C28: МДФ | D28: 37 | E28: 42 | F28: 28.85 | H28: МАСЛО | J28: ЛАК, декор РОВЕРА НАТУРАЛ | K28: ЛАК | P28: =K3&", "&H25&", "&B28 -> ДУБ, Б/О, МДФ 37, AB/BC | R28: 0 | S28: 0 | T28: 0 | V28: ЯСЕНЬ 28, ЛАК | X28: 0 | Y28: 0 | Z28: 0 | AE28: ДУБ, Б/О, МДФ 37, AB/BC
J29: МАСЛО, декор ПАЛИСАНДР | K29: МАСЛО | P29: =K3&", "&H26&", "&B3 -> ДУБ, ЭМАЛЬ, ДСП 10, AB/лам. | R29: 0 | S29: 0 | T29: 0 | V29: ЯСЕНЬ 33, ЛАК | X29: 0 | Y29: 0 | Z29: 0 | AE29: ДУБ, ЭМАЛЬ, ДСП 10, AB/лам.
D30: http://mosfanera.ru/stati/ves-dsp.html | J30: МАСЛО, декор ЦЕМЕНТ | K30: МАСЛО | P30: =K3&", "&H26&", "&B4 -> ДУБ, ЭМАЛЬ, ДСП 16, AB/AB | R30: 0 | S30: 0 | T30: 0 | V30: ЯСЕНЬ 42, ЛАК | X30: 0 | Y30: 0 | Z30: 0 | AE30: ДУБ, ЭМАЛЬ, ДСП 16, AB/AB
D31: РАЗМЕР И ПЛОЩАДЬ ЛИСТА | J31: ОТДЕЛКА_ЯСЕНЬ + ДЕКОР | K31: ОТДЕЛКА | P31: =K3&", "&H26&", "&B5 -> ДУБ, ЭМАЛЬ, ДСП 16, AB/BC | R31: 0 | S31: 0 | T31: 0 | V31: ЯСЕНЬ 22, МАСЛО | X31: 0 | Y31: 0 | Z31: 0 | AE31: ДУБ, ЭМАЛЬ, ДСП 16, AB/BC
D32: 2.8 | E32: 2.07 | F32: М | J32: БЕЗ ОТДЕЛКИ | K32: Б/О | P32: =K3&", "&H26&", "&B6 -> ДУБ, ЭМАЛЬ, ДСП 16, AB/карт. | R32: 0 | S32: 0 | T32: 0 | V32: ЯСЕНЬ 28, МАСЛО | X32: 0 | Y32: 0 | Z32: 0 | AE32: ДУБ, ЭМАЛЬ, ДСП 16, AB/карт.
D33: =D32*E32 -> 5.796 | F33: М.КВ. | J33: ЭМАЛЬ, декор БЕЛЫЙ | K33: ЭМАЛЬ | P33: =K3&", "&H26&", "&B7 -> ДУБ, ЭМАЛЬ, ДСП 16, BC/BC | R33: 0 | S33: 0 | T33: 0 | V33: ЯСЕНЬ 33, МАСЛО | X33: 0 | Y33: 0 | Z33: 0 | AE33: ДУБ, ЭМАЛЬ, ДСП 16, BC/BC
J34: ЛАК, декор ЧЁРНЫЙ | K34: ЛАК | P34: =K3&", "&H26&", "&B8 -> ДУБ, ЭМАЛЬ, ДСП 18, AB/AB | R34: 0 | S34: 0 | T34: 0 | V34: ЯСЕНЬ 42, МАСЛО | X34: 0 | Y34: 0 | Z34: 0 | AE34: ДУБ, ЭМАЛЬ, ДСП 18, AB/AB
J35: МАСЛО, декор ПАЛИСАНДР | K35: МАСЛО | P35: =K3&", "&H26&", "&B9 -> ДУБ, ЭМАЛЬ, ДСП 18, AB/BC | R35: 0 | S35: 0 | T35: 0 | AE35: ДУБ, ЭМАЛЬ, ДСП 18, AB/BC
P36: =K3&", "&H26&", "&B10 -> ДУБ, ЭМАЛЬ, ДСП 18, AB/карт. | R36: 0 | S36: 0 | T36: 0 | AE36: ДУБ, ЭМАЛЬ, ДСП 18, AB/карт.
J37: ВАЛЮТА Национальные, иностранные и международные деньги, как в наличной форме, так и безналичной, являющиеся законным средством платежа. | P37: =K3&", "&H26&", "&B11 -> ДУБ, ЭМАЛЬ, ДСП 22, AB/AB | R37: 0 | S37: 0 | T37: 0 | AE37: ДУБ, ЭМАЛЬ, ДСП 22, AB/AB
P38: =K3&", "&H26&", "&B12 -> ДУБ, ЭМАЛЬ, ДСП 22, AB/BС | R38: 0 | S38: 0 | T38: 0 | AE38: ДУБ, ЭМАЛЬ, ДСП 22, AB/BС
P39: =K3&", "&H26&", "&B13 -> ДУБ, ЭМАЛЬ, ДСП 25, AB/AB | R39: 0 | S39: 0 | T39: 0 | AE39: ДУБ, ЭМАЛЬ, ДСП 25, AB/AB
P40: =K3&", "&H26&", "&B14 -> ДУБ, ЭМАЛЬ, ДСП 25, AB/BС | R40: 0 | S40: 0 | T40: 0 | AE40: ДУБ, ЭМАЛЬ, ДСП 25, AB/BС
P41: =K3&", "&H26&", "&B15 -> ДУБ, ЭМАЛЬ, ДСП 32, AB/AB | R41: 0 | S41: 0 | T41: 0 | AE41: ДУБ, ЭМАЛЬ, ДСП 32, AB/AB
P42: =K3&", "&H26&", "&B16 -> ДУБ, ЭМАЛЬ, ДСП 32, AB/BС | R42: 0 | S42: 0 | T42: 0 | AE42: ДУБ, ЭМАЛЬ, ДСП 32, AB/BС
P43: =K3&", "&H26&", "&B17 -> ДУБ, ЭМАЛЬ, ДСП 36, AB/AB | R43: 0 | S43: 0 | T43: 0 | AE43: ДУБ, ЭМАЛЬ, ДСП 36, AB/AB
P44: =K3&", "&H26&", "&B18 -> ДУБ, ЭМАЛЬ, ДСП 36, AB/BС | R44: 0 | S44: 0 | T44: 0 | AE44: ДУБ, ЭМАЛЬ, ДСП 36, AB/BС
P45: =K3&", "&H26&", "&B19 -> ДУБ, ЭМАЛЬ, МДФ 9, AB/AB | R45: 0 | S45: 0 | T45: 0 | AE45: ДУБ, ЭМАЛЬ, МДФ 9, AB/AB
P46: =K3&", "&H26&", "&B20 -> ДУБ, ЭМАЛЬ, МДФ 9, AB/BC | R46: 0 | S46: 0 | T46: 0 | AE46: ДУБ, ЭМАЛЬ, МДФ 9, AB/BC
P47: =K3&", "&H26&", "&B21 -> ДУБ, ЭМАЛЬ, МДФ 9, BC/BC | R47: 0 | S47: 0 | T47: 0 | AE47: ДУБ, ЭМАЛЬ, МДФ 9, BC/BC
P48: =K3&", "&H26&", "&B22 -> ДУБ, ЭМАЛЬ, МДФ 19, AB/AB | R48: 0 | S48: 0 | T48: 0 | AE48: ДУБ, ЭМАЛЬ, МДФ 19, AB/AB
P49: =K3&", "&H26&", "&B23 -> ДУБ, ЭМАЛЬ, МДФ 19, AB/BC | R49: 0 | S49: 0 | T49: 0 | AE49: ДУБ, ЭМАЛЬ, МДФ 19, AB/BC
P50: =K3&", "&H26&", "&B24 -> ДУБ, ЭМАЛЬ, МДФ 19, AB/карт. | R50: 0 | S50: 0 | T50: 0 | AE50: ДУБ, ЭМАЛЬ, МДФ 19, AB/карт.
P51: =K3&", "&H26&", "&B25 -> ДУБ, ЭМАЛЬ, МДФ 26, AB/AB | R51: 0 | S51: 0 | T51: 0 | AE51: ДУБ, ЭМАЛЬ, МДФ 26, AB/AB
P52: =K3&", "&H26&", "&B26 -> ДУБ, ЭМАЛЬ, МДФ 26, AB/BC | R52: 0 | S52: 0 | T52: 0 | AE52: ДУБ, ЭМАЛЬ, МДФ 26, AB/BC
P53: =K3&", "&H26&", "&B27 -> ДУБ, ЭМАЛЬ, МДФ 37, AB/AB | R53: 0 | S53: 0 | T53: 0 | AE53: ДУБ, ЭМАЛЬ, МДФ 37, AB/AB
P54: =K3&", "&H26&", "&B28 -> ДУБ, ЭМАЛЬ, МДФ 37, AB/BC | R54: 0 | S54: 0 | T54: 0 | AE54: ДУБ, ЭМАЛЬ, МДФ 37, AB/BC
P55: =K3&", "&H27&", "&B3 -> ДУБ, ЛАК, ДСП 10, AB/лам. | Q55: =AF55+AG55 -> 796 | R55: 1768 | S55: 54 | T55: 66 | AE55: ДУБ, ЛАК, ДСП 10, AB/лам. | AF55: 692 | AG55: 104
P56: =K3&", "&H27&", "&B4 -> ДУБ, ЛАК, ДСП 16, AB/AB | Q56: =AF56+AG56 -> 1139 | R56: 2529 | S56: 77 | T56: 94 | AE56: ДУБ, ЛАК, ДСП 16, AB/AB | AF56: 1035 | AG56: 104
P57: =K3&", "&H27&", "&B5 -> ДУБ, ЛАК, ДСП 16, AB/BC | Q57: 1091 | R57: 2423 | S57: 74 | T57: 90 | AE57: ДУБ, ЛАК, ДСП 16, AB/BC | AF57: 987 | AG57: 104
P58: =K3&", "&H27&", "&B6 -> ДУБ, ЛАК, ДСП 16, AB/карт. | Q58: 1020 | R58: 2265 | S58: 69 | T58: 84 | AE58: ДУБ, ЛАК, ДСП 16, AB/карт. | AF58: 916 | AG58: 104
P59: =K3&", "&H27&", "&B7 -> ДУБ, ЛАК, ДСП 16, BC/BC | Q59: 1043 | R59: 2316 | S59: 71 | T59: 86 | AE59: ДУБ, ЛАК, ДСП 16, BC/BC | AF59: 939 | AG59: 104
P60: =K3&", "&H27&", "&B8 -> ДУБ, ЛАК, ДСП 18, AB/AB | Q60: 1183 | R60: 2627 | S60: 80 | T60: 98 | AE60: ДУБ, ЛАК, ДСП 18, AB/AB | AF60: 1079 | AG60: 104
P61: =K3&", "&H27&", "&B9 -> ДУБ, ЛАК, ДСП 18, AB/BC | Q61: 1136 | R61: 2522 | S61: 77 | T61: 94 | AE61: ДУБ, ЛАК, ДСП 18, AB/BC | AF61: 1032 | AG61: 104
P62: =K3&", "&H27&", "&B10 -> ДУБ, ЛАК, ДСП 18, AB/карт. | Q62: 1064 | R62: 2363 | S62: 72 | T62: 88 | AE62: ДУБ, ЛАК, ДСП 18, AB/карт. | AF62: 960 | AG62: 104
P63: =K3&", "&H27&", "&B11 -> ДУБ, ЛАК, ДСП 22, AB/AB | Q63: 1188 | R63: 2638 | S63: 80 | T63: 98 | AE63: ДУБ, ЛАК, ДСП 22, AB/AB | AF63: 1078 | AG63: 110
P64: =K3&", "&H27&", "&B12 -> ДУБ, ЛАК, ДСП 22, AB/BС | Q64: 1139 | R64: 2529 | S64: 77 | T64: 94 | AE64: ДУБ, ЛАК, ДСП 22, AB/BС | AF64: 1029 | AG64: 110
P65: =K3&", "&H27&", "&B13 -> ДУБ, ЛАК, ДСП 25, AB/AB | Q65: 1265 | R65: 2809 | S65: 86 | T65: 105 | AE65: ДУБ, ЛАК, ДСП 25, AB/AB | AF65: 1155 | AG65: 110
P66: =K3&", "&H27&", "&B14 -> ДУБ, ЛАК, ДСП 25, AB/BС | Q66: 1218 | R66: 2704 | S66: 82 | T66: 101 | AE66: ДУБ, ЛАК, ДСП 25, AB/BС | AF66: 1108 | AG66: 110
P67: =K3&", "&H27&", "&B15 -> ДУБ, ЛАК, ДСП 32, AB/AB | Q67: 1350 | R67: =ROUNDUP(Q67*К_НАЦЕНКА,0) -> 2997 | S67: =ROUNDUP(R67/EURO_PRISE,0) -> 91 | T67: =ROUNDUP(R67/USD_PRISE,0) -> 111 | AE67: ДУБ, ЛАК, ДСП 32, AB/AB | AF67: 1188 | AG67: 162
P68: =K3&", "&H27&", "&B16 -> ДУБ, ЛАК, ДСП 32, AB/BС | Q68: 1302 | R68: 2891 | S68: 88 | T68: 108 | AE68: ДУБ, ЛАК, ДСП 32, AB/BС | AF68: 1140 | AG68: 162
P69: =K3&", "&H27&", "&B17 -> ДУБ, ЛАК, ДСП 36, AB/AB | Q69: 1394 | R69: 3095 | S69: 94 | T69: 115 | AE69: ДУБ, ЛАК, ДСП 36, AB/AB | AF69: 1232 | AG69: 162
P70: =K3&", "&H27&", "&B18 -> ДУБ, ЛАК, ДСП 36, AB/BС | Q70: 1346 | R70: 2989 | S70: 91 | T70: 111 | AE70: ДУБ, ЛАК, ДСП 36, AB/BС | AF70: 1184 | AG70: 162
P71: =K3&", "&H27&", "&B19 -> ДУБ, ЛАК, МДФ 9, AB/AB | Q71: 1182 | R71: 2625 | S71: 80 | T71: 98 | AE71: ДУБ, ЛАК, МДФ 9, AB/AB | AF71: 1078 | AG71: 104
P72: =K3&", "&H27&", "&B20 -> ДУБ, ЛАК, МДФ 9, AB/BC | Q72: 1134 | R72: 2518 | S72: 77 | T72: 94 | AE72: ДУБ, ЛАК, МДФ 9, AB/BC | AF72: 1030 | AG72: 104
P73: =K3&", "&H27&", "&B21 -> ДУБ, ЛАК, МДФ 9, BC/BC | Q73: 1086 | R73: 2411 | S73: 74 | T73: 90 | AE73: ДУБ, ЛАК, МДФ 9, BC/BC | AF73: 982 | AG73: 104
P74: =K3&", "&H27&", "&B22 -> ДУБ, ЛАК, МДФ 19, AB/AB | Q74: 1266 | R74: 2811 | S74: 86 | T74: 105 | AE74: ДУБ, ЛАК, МДФ 19, AB/AB | AF74: 1162 | AG74: 104
P75: =K3&", "&H27&", "&B23 -> ДУБ, ЛАК, МДФ 19, AB/BC | Q75: 1217 | R75: 2702 | S75: 82 | T75: 101 | AE75: ДУБ, ЛАК, МДФ 19, AB/BC | AF75: 1113 | AG75: 104
P76: =K3&", "&H27&", "&B24 -> ДУБ, ЛАК, МДФ 19, AB/карт. | Q76: 1146 | R76: 2545 | S76: 78 | T76: 95 | AE76: ДУБ, ЛАК, МДФ 19, AB/карт. | AF76: 1042 | AG76: 104
P77: =K3&", "&H27&", "&B25 -> ДУБ, ЛАК, МДФ 26, AB/AB | Q77: 1354 | R77: 3006 | S77: 92 | T77: 112 | AE77: ДУБ, ЛАК, МДФ 26, AB/AB | AF77: 1244 | AG77: 110
P78: =K3&", "&H27&", "&B26 -> ДУБ, ЛАК, МДФ 26, AB/BC | Q78: 1306 | R78: 2900 | S78: 88 | T78: 108 | AE78: ДУБ, ЛАК, МДФ 26, AB/BC | AF78: 1196 | AG78: 110
P79: =K3&", "&H27&", "&B27 -> ДУБ, ЛАК, МДФ 37, AB/AB | Q79: 1558 | R79: 3459 | S79: 105 | T79: 129 | AE79: ДУБ, ЛАК, МДФ 37, AB/AB | AF79: 1396 | AG79: 162
P80: =K3&", "&H27&", "&B28 -> ДУБ, ЛАК, МДФ 37, AB/BC | Q80: 1510 | R80: 3353 | S80: 102 | T80: 125 | AE80: ДУБ, ЛАК, МДФ 37, AB/BC | AF80: 1348 | AG80: 162
P81: =K3&", "&H28&", "&B3 -> ДУБ, МАСЛО, ДСП 10, AB/лам. | Q81: 636 | R81: 1412 | S81: 43 | T81: 53 | AE81: ДУБ, МАСЛО, ДСП 10, AB/лам. | AF81: 532 | AG81: 104
P82: =K3&", "&H28&", "&B4 -> ДУБ, МАСЛО, ДСП 16, AB/AB | Q82: 753 | R82: 1672 | S82: 51 | T82: 62 | AE82: ДУБ, МАСЛО, ДСП 16, AB/AB | AF82: 649 | AG82: 104
P83: =K3&", "&H28&", "&B5 -> ДУБ, МАСЛО, ДСП 16, AB/BC | Q83: 706 | R83: 1568 | S83: 48 | T83: 59 | AE83: ДУБ, МАСЛО, ДСП 16, AB/BC | AF83: 602 | AG83: 104
P84: =K3&", "&H28&", "&B6 -> ДУБ, МАСЛО, ДСП 16, AB/карт. | Q84: 604 | R84: 1341 | S84: 41 | T84: 50 | AE84: ДУБ, МАСЛО, ДСП 16, AB/карт. | AF84: 500 | AG84: 104
P85: =K3&", "&H28&", "&B7 -> ДУБ, МАСЛО, ДСП 16, BC/BC | Q85: 657 | R85: 1459 | S85: 45 | T85: 55 | AE85: ДУБ, МАСЛО, ДСП 16, BC/BC | AF85: 553 | AG85: 104
P86: =K3&", "&H28&", "&B8 -> ДУБ, МАСЛО, ДСП 18, AB/AB | Q86: 797 | R86: 1770 | S86: 54 | T86: 66 | AE86: ДУБ, МАСЛО, ДСП 18, AB/AB | AF86: 693 | AG86: 104
P87: =K3&", "&H28&", "&B9 -> ДУБ, МАСЛО, ДСП 18, AB/BC | Q87: 749 | R87: 1663 | S87: 51 | T87: 62 | AE87: ДУБ, МАСЛО, ДСП 18, AB/BC | AF87: 645 | AG87: 104
P88: =K3&", "&H28&", "&B10 -> ДУБ, МАСЛО, ДСП 18, AB/карт. | Q88: 641 | R88: 1424 | S88: 44 | T88: 53 | AE88: ДУБ, МАСЛО, ДСП 18, AB/карт. | AF88: 537 | AG88: 104
P89: =K3&", "&H28&", "&B11 -> ДУБ, МАСЛО, ДСП 22, AB/AB | Q89: 802 | R89: 1781 | S89: 54 | T89: 66 | AE89: ДУБ, МАСЛО, ДСП 22, AB/AB | AF89: 692 | AG89: 110
P90: =K3&", "&H28&", "&B12 -> ДУБ, МАСЛО, ДСП 22, AB/BС | Q90: 753 | R90: 1672 | S90: 51 | T90: 62 | AE90: ДУБ, МАСЛО, ДСП 22, AB/BС | AF90: 643 | AG90: 110
P91: =K3&", "&H28&", "&B13 -> ДУБ, МАСЛО, ДСП 25, AB/AB | Q91: 878 | R91: 1950 | S91: 60 | T91: 73 | AE91: ДУБ, МАСЛО, ДСП 25, AB/AB | AF91: 768 | AG91: 110
P92: =K3&", "&H28&", "&B14 -> ДУБ, МАСЛО, ДСП 25, AB/BС | Q92: 832 | R92: 1848 | S92: 56 | T92: 69 | AE92: ДУБ, МАСЛО, ДСП 25, AB/BС | AF92: 722 | AG92: 110
P93: =K3&", "&H28&", "&B15 -> ДУБ, МАСЛО, ДСП 32, AB/AB | Q93: 964 | R93: 2141 | S93: 65 | T93: 80 | AE93: ДУБ, МАСЛО, ДСП 32, AB/AB | AF93: 802 | AG93: 162
P94: =K3&", "&H28&", "&B16 -> ДУБ, МАСЛО, ДСП 32, AB/BС | Q94: 916 | R94: 2034 | S94: 62 | T94: 76 | AE94: ДУБ, МАСЛО, ДСП 32, AB/BС | AF94: 754 | AG94: 162
P95: =K3&", "&H28&", "&B17 -> ДУБ, МАСЛО, ДСП 36, AB/AB | Q95: 1008 | R95: 2238 | S95: 68 | T95: 83 | AE95: ДУБ, МАСЛО, ДСП 36, AB/AB | AF95: 846 | AG95: 162
P96: =K3&", "&H28&", "&B18 -> ДУБ, МАСЛО, ДСП 36, AB/BС | Q96: 960 | R96: 2132 | S96: 65 | T96: 79 | AE96: ДУБ, МАСЛО, ДСП 36, AB/BС | AF96: 798 | AG96: 162
P97: =K3&", "&H28&", "&B19 -> ДУБ, МАСЛО, МДФ 9, AB/AB | Q97: 796 | R97: 1768 | S97: 54 | T97: 66 | AE97: ДУБ, МАСЛО, МДФ 9, AB/AB | AF97: 692 | AG97: 104
P98: =K3&", "&H28&", "&B20 -> ДУБ, МАСЛО, МДФ 9, AB/BC | Q98: 748 | R98: 1661 | S98: 51 | T98: 62 | AE98: ДУБ, МАСЛО, МДФ 9, AB/BC | AF98: 644 | AG98: 104
P99: =K3&", "&H28&", "&B21 -> ДУБ, МАСЛО, МДФ 9, BC/BC | Q99: 700 | R99: 1554 | S99: 48 | T99: 58 | AE99: ДУБ, МАСЛО, МДФ 9, BC/BC | AF99: 596 | AG99: 104
P100: =K3&", "&H28&", "&B22 -> ДУБ, МАСЛО, МДФ 19, AB/AB | Q100: 879 | R100: 1952 | S100: 60 | T100: 73 | AE100: ДУБ, МАСЛО, МДФ 19, AB/AB | AF100: 775 | AG100: 104
P101: =K3&", "&H28&", "&B23 -> ДУБ, МАСЛО, МДФ 19, AB/BC | Q101: 831 | R101: 1845 | S101: 56 | T101: 69 | AE101: ДУБ, МАСЛО, МДФ 19, AB/BC | AF101: 727 | AG101: 104
P102: =K3&", "&H28&", "&B24 -> ДУБ, МАСЛО, МДФ 19, AB/карт. | Q102: 723 | R102: 1606 | S102: 49 | T102: 60 | AE102: ДУБ, МАСЛО, МДФ 19, AB/карт. | AF102: 619 | AG102: 104
P103: =K3&", "&H28&", "&B25 -> ДУБ, МАСЛО, МДФ 26, AB/AB | Q103: 968 | R103: 2149 | S103: 66 | T103: 80 | AE103: ДУБ, МАСЛО, МДФ 26, AB/AB | AF103: 858 | AG103: 110
P104: =K3&", "&H28&", "&B26 -> ДУБ, МАСЛО, МДФ 26, AB/BC | Q104: 920 | R104: 2043 | S104: 62 | T104: 76 | AE104: ДУБ, МАСЛО, МДФ 26, AB/BC | AF104: 810 | AG104: 110
P105: =K3&", "&H28&", "&B27 -> ДУБ, МАСЛО, МДФ 37, AB/AB | Q105: 1172 | R105: 2602 | S105: 79 | T105: 97 | AE105: ДУБ, МАСЛО, МДФ 37, AB/AB | AF105: 1010 | AG105: 162
P106: =K3&", "&H28&", "&B28 -> ДУБ, МАСЛО, МДФ 37, AB/BC | Q106: 1124 | R106: 2496 | S106: 76 | T106: 93 | AE106: ДУБ, МАСЛО, МДФ 37, AB/BC | AF106: 962 | AG106: 162
P107: =K5&", "&H25&", "&B3 -> ЯСЕНЬ, Б/О, ДСП 10, AB/лам. | R107: 0 | S107: 0 | T107: 0 | AE107: ЯСЕНЬ, Б/О, ДСП 10, AB/лам.
P108: =K5&", "&H25&", "&B4 -> ЯСЕНЬ, Б/О, ДСП 16, AB/AB | R108: 0 | S108: 0 | T108: 0 | AE108: ЯСЕНЬ, Б/О, ДСП 16, AB/AB
P109: =K5&", "&H25&", "&B5 -> ЯСЕНЬ, Б/О, ДСП 16, AB/BC | R109: 0 | S109: 0 | T109: 0 | AE109: ЯСЕНЬ, Б/О, ДСП 16, AB/BC
P110: =K5&", "&H25&", "&B6 -> ЯСЕНЬ, Б/О, ДСП 16, AB/карт. | R110: 0 | S110: 0 | T110: 0 | AE110: ЯСЕНЬ, Б/О, ДСП 16, AB/карт.
P111: =K5&", "&H25&", "&B7 -> ЯСЕНЬ, Б/О, ДСП 16, BC/BC | R111: 0 | S111: 0 | T111: 0 | AE111: ЯСЕНЬ, Б/О, ДСП 16, BC/BC
P112: =K5&", "&H25&", "&B8 -> ЯСЕНЬ, Б/О, ДСП 18, AB/AB | R112: 0 | S112: 0 | T112: 0 | AE112: ЯСЕНЬ, Б/О, ДСП 18, AB/AB
P113: =K5&", "&H25&", "&B9 -> ЯСЕНЬ, Б/О, ДСП 18, AB/BC | R113: 0 | S113: 0 | T113: 0 | AE113: ЯСЕНЬ, Б/О, ДСП 18, AB/BC
P114: =K5&", "&H25&", "&B10 -> ЯСЕНЬ, Б/О, ДСП 18, AB/карт. | R114: 0 | S114: 0 | T114: 0 | AE114: ЯСЕНЬ, Б/О, ДСП 18, AB/карт.
P115: =K5&", "&H25&", "&B11 -> ЯСЕНЬ, Б/О, ДСП 22, AB/AB | R115: 0 | S115: 0 | T115: 0 | AE115: ЯСЕНЬ, Б/О, ДСП 22, AB/AB
P116: =K5&", "&H25&", "&B12 -> ЯСЕНЬ, Б/О, ДСП 22, AB/BС | R116: 0 | S116: 0 | T116: 0 | AE116: ЯСЕНЬ, Б/О, ДСП 22, AB/BС
P117: =K5&", "&H25&", "&B13 -> ЯСЕНЬ, Б/О, ДСП 25, AB/AB | R117: 0 | S117: 0 | T117: 0 | AE117: ЯСЕНЬ, Б/О, ДСП 25, AB/AB
P118: =K5&", "&H25&", "&B14 -> ЯСЕНЬ, Б/О, ДСП 25, AB/BС | R118: 0 | S118: 0 | T118: 0 | AE118: ЯСЕНЬ, Б/О, ДСП 25, AB/BС
P119: =K5&", "&H25&", "&B15 -> ЯСЕНЬ, Б/О, ДСП 32, AB/AB | R119: 0 | S119: 0 | T119: 0 | AE119: ЯСЕНЬ, Б/О, ДСП 32, AB/AB
P120: =K5&", "&H25&", "&B16 -> ЯСЕНЬ, Б/О, ДСП 32, AB/BС | R120: 0 | S120: 0 | T120: 0 | AE120: ЯСЕНЬ, Б/О, ДСП 32, AB/BС
P121: =K5&", "&H25&", "&B17 -> ЯСЕНЬ, Б/О, ДСП 36, AB/AB | R121: 0 | S121: 0 | T121: 0 | AE121: ЯСЕНЬ, Б/О, ДСП 36, AB/AB
P122: =K5&", "&H25&", "&B18 -> ЯСЕНЬ, Б/О, ДСП 36, AB/BС | R122: 0 | S122: 0 | T122: 0 | AE122: ЯСЕНЬ, Б/О, ДСП 36, AB/BС
P123: =K5&", "&H25&", "&B19 -> ЯСЕНЬ, Б/О, МДФ 9, AB/AB | R123: 0 | S123: 0 | T123: 0 | AE123: ЯСЕНЬ, Б/О, МДФ 9, AB/AB
P124: =K5&", "&H25&", "&B20 -> ЯСЕНЬ, Б/О, МДФ 9, AB/BC | R124: 0 | S124: 0 | T124: 0 | AE124: ЯСЕНЬ, Б/О, МДФ 9, AB/BC
P125: =K5&", "&H25&", "&B21 -> ЯСЕНЬ, Б/О, МДФ 9, BC/BC | R125: 0 | S125: 0 | T125: 0 | AE125: ЯСЕНЬ, Б/О, МДФ 9, BC/BC
P126: =K5&", "&H25&", "&B22 -> ЯСЕНЬ, Б/О, МДФ 19, AB/AB | R126: 0 | S126: 0 | T126: 0 | AE126: ЯСЕНЬ, Б/О, МДФ 19, AB/AB
P127: =K5&", "&H25&", "&B23 -> ЯСЕНЬ, Б/О, МДФ 19, AB/BC | R127: 0 | S127: 0 | T127: 0 | AE127: ЯСЕНЬ, Б/О, МДФ 19, AB/BC
P128: =K5&", "&H25&", "&B24 -> ЯСЕНЬ, Б/О, МДФ 19, AB/карт. | R128: 0 | S128: 0 | T128: 0 | AE128: ЯСЕНЬ, Б/О, МДФ 19, AB/карт.
P129: =K5&", "&H25&", "&B25 -> ЯСЕНЬ, Б/О, МДФ 26, AB/AB | R129: 0 | S129: 0 | T129: 0 | AE129: ЯСЕНЬ, Б/О, МДФ 26, AB/AB
P130: =K5&", "&H25&", "&B26 -> ЯСЕНЬ, Б/О, МДФ 26, AB/BC | R130: 0 | S130: 0 | T130: 0 | AE130: ЯСЕНЬ, Б/О, МДФ 26, AB/BC
P131: =K5&", "&H25&", "&B27 -> ЯСЕНЬ, Б/О, МДФ 37, AB/AB | R131: =ROUNDUP(Q131*К_НАЦЕНКА,0) -> 0 | S131: =ROUNDUP(R131/EURO_PRISE,0) -> 0 | T131: =ROUNDUP(R131/USD_PRISE,0) -> 0 | AE131: ЯСЕНЬ, Б/О, МДФ 37, AB/AB
P132: =K5&", "&H25&", "&B28 -> ЯСЕНЬ, Б/О, МДФ 37, AB/BC | R132: 0 | S132: 0 | T132: 0 | AE132: ЯСЕНЬ, Б/О, МДФ 37, AB/BC
P133: =K5&", "&H26&", "&B3 -> ЯСЕНЬ, ЭМАЛЬ, ДСП 10, AB/лам. | R133: 0 | S133: 0 | T133: 0 | AE133: ЯСЕНЬ, ЭМАЛЬ, ДСП 10, AB/лам.
P134: =K5&", "&H26&", "&B4 -> ЯСЕНЬ, ЭМАЛЬ, ДСП 16, AB/AB | R134: 0 | S134: 0 | T134: 0 | AE134: ЯСЕНЬ, ЭМАЛЬ, ДСП 16, AB/AB
P135: =K5&", "&H26&", "&B5 -> ЯСЕНЬ, ЭМАЛЬ, ДСП 16, AB/BC | R135: 0 | S135: 0 | T135: 0 | AE135: ЯСЕНЬ, ЭМАЛЬ, ДСП 16, AB/BC
P136: =K5&", "&H26&", "&B6 -> ЯСЕНЬ, ЭМАЛЬ, ДСП 16, AB/карт. | R136: 0 | S136: 0 | T136: 0 | AE136: ЯСЕНЬ, ЭМАЛЬ, ДСП 16, AB/карт.
P137: =K5&", "&H26&", "&B7 -> ЯСЕНЬ, ЭМАЛЬ, ДСП 16, BC/BC | R137: 0 | S137: 0 | T137: 0 | AE137: ЯСЕНЬ, ЭМАЛЬ, ДСП 16, BC/BC
P138: =K5&", "&H26&", "&B8 -> ЯСЕНЬ, ЭМАЛЬ, ДСП 18, AB/AB | R138: 0 | S138: 0 | T138: 0 | AE138: ЯСЕНЬ, ЭМАЛЬ, ДСП 18, AB/AB
P139: =K5&", "&H26&", "&B9 -> ЯСЕНЬ, ЭМАЛЬ, ДСП 18, AB/BC | R139: 0 | S139: 0 | T139: 0 | AE139: ЯСЕНЬ, ЭМАЛЬ, ДСП 18, AB/BC
P140: =K5&", "&H26&", "&B10 -> ЯСЕНЬ, ЭМАЛЬ, ДСП 18, AB/карт. | R140: 0 | S140: 0 | T140: 0 | AE140: ЯСЕНЬ, ЭМАЛЬ, ДСП 18, AB/карт.
P141: =K5&", "&H26&", "&B11 -> ЯСЕНЬ, ЭМАЛЬ, ДСП 22, AB/AB | R141: 0 | S141: 0 | T141: 0 | AE141: ЯСЕНЬ, ЭМАЛЬ, ДСП 22, AB/AB
P142: =K5&", "&H26&", "&B12 -> ЯСЕНЬ, ЭМАЛЬ, ДСП 22, AB/BС | R142: 0 | S142: 0 | T142: 0 | AE142: ЯСЕНЬ, ЭМАЛЬ, ДСП 22, AB/BС
P143: =K5&", "&H26&", "&B13 -> ЯСЕНЬ, ЭМАЛЬ, ДСП 25, AB/AB | R143: 0 | S143: 0 | T143: 0 | AE143: ЯСЕНЬ, ЭМАЛЬ, ДСП 25, AB/AB
P144: =K5&", "&H26&", "&B14 -> ЯСЕНЬ, ЭМАЛЬ, ДСП 25, AB/BС | R144: 0 | S144: 0 | T144: 0 | AE144: ЯСЕНЬ, ЭМАЛЬ, ДСП 25, AB/BС
P145: =K5&", "&H26&", "&B15 -> ЯСЕНЬ, ЭМАЛЬ, ДСП 32, AB/AB | R145: 0 | S145: 0 | T145: 0 | AE145: ЯСЕНЬ, ЭМАЛЬ, ДСП 32, AB/AB
P146: =K5&", "&H26&", "&B16 -> ЯСЕНЬ, ЭМАЛЬ, ДСП 32, AB/BС | R146: 0 | S146: 0 | T146: 0 | AE146: ЯСЕНЬ, ЭМАЛЬ, ДСП 32, AB/BС
P147: =K5&", "&H26&", "&B17 -> ЯСЕНЬ, ЭМАЛЬ, ДСП 36, AB/AB | R147: 0 | S147: 0 | T147: 0 | AE147: ЯСЕНЬ, ЭМАЛЬ, ДСП 36, AB/AB
P148: =K5&", "&H26&", "&B18 -> ЯСЕНЬ, ЭМАЛЬ, ДСП 36, AB/BС | R148: 0 | S148: 0 | T148: 0 | AE148: ЯСЕНЬ, ЭМАЛЬ, ДСП 36, AB/BС
P149: =K5&", "&H26&", "&B19 -> ЯСЕНЬ, ЭМАЛЬ, МДФ 9, AB/AB | R149: 0 | S149: 0 | T149: 0 | AE149: ЯСЕНЬ, ЭМАЛЬ, МДФ 9, AB/AB
P150: =K5&", "&H26&", "&B20 -> ЯСЕНЬ, ЭМАЛЬ, МДФ 9, AB/BC | R150: 0 | S150: 0 | T150: 0 | AE150: ЯСЕНЬ, ЭМАЛЬ, МДФ 9, AB/BC
P151: =K5&", "&H26&", "&B21 -> ЯСЕНЬ, ЭМАЛЬ, МДФ 9, BC/BC | R151: 0 | S151: 0 | T151: 0 | AE151: ЯСЕНЬ, ЭМАЛЬ, МДФ 9, BC/BC
P152: =K5&", "&H26&", "&B22 -> ЯСЕНЬ, ЭМАЛЬ, МДФ 19, AB/AB | R152: 0 | S152: 0 | T152: 0 | AE152: ЯСЕНЬ, ЭМАЛЬ, МДФ 19, AB/AB
P153: =K5&", "&H26&", "&B23 -> ЯСЕНЬ, ЭМАЛЬ, МДФ 19, AB/BC | R153: 0 | S153: 0 | T153: 0 | AE153: ЯСЕНЬ, ЭМАЛЬ, МДФ 19, AB/BC
P154: =K5&", "&H26&", "&B24 -> ЯСЕНЬ, ЭМАЛЬ, МДФ 19, AB/карт. | R154: 0 | S154: 0 | T154: 0 | AE154: ЯСЕНЬ, ЭМАЛЬ, МДФ 19, AB/карт.
P155: =K5&", "&H26&", "&B25 -> ЯСЕНЬ, ЭМАЛЬ, МДФ 26, AB/AB | R155: 0 | S155: 0 | T155: 0 | AE155: ЯСЕНЬ, ЭМАЛЬ, МДФ 26, AB/AB
P156: =K5&", "&H26&", "&B26 -> ЯСЕНЬ, ЭМАЛЬ, МДФ 26, AB/BC | R156: 0 | S156: 0 | T156: 0 | AE156: ЯСЕНЬ, ЭМАЛЬ, МДФ 26, AB/BC
P157: =K5&", "&H26&", "&B27 -> ЯСЕНЬ, ЭМАЛЬ, МДФ 37, AB/AB | R157: 0 | S157: 0 | T157: 0 | AE157: ЯСЕНЬ, ЭМАЛЬ, МДФ 37, AB/AB
P158: =K5&", "&H26&", "&B28 -> ЯСЕНЬ, ЭМАЛЬ, МДФ 37, AB/BC | R158: 0 | S158: 0 | T158: 0 | AE158: ЯСЕНЬ, ЭМАЛЬ, МДФ 37, AB/BC
P159: =K5&", "&H27&", "&B3 -> ЯСЕНЬ, ЛАК, ДСП 10, AB/лам. | R159: 0 | S159: 0 | T159: 0 | AE159: ЯСЕНЬ, ЛАК, ДСП 10, AB/лам.
P160: =K5&", "&H27&", "&B4 -> ЯСЕНЬ, ЛАК, ДСП 16, AB/AB | R160: 0 | S160: 0 | T160: 0 | AE160: ЯСЕНЬ, ЛАК, ДСП 16, AB/AB
P161: =K5&", "&H27&", "&B5 -> ЯСЕНЬ, ЛАК, ДСП 16, AB/BC | R161: 0 | S161: 0 | T161: 0 | AE161: ЯСЕНЬ, ЛАК, ДСП 16, AB/BC
P162: =K5&", "&H27&", "&B6 -> ЯСЕНЬ, ЛАК, ДСП 16, AB/карт. | R162: 0 | S162: 0 | T162: 0 | AE162: ЯСЕНЬ, ЛАК, ДСП 16, AB/карт.
P163: =K5&", "&H27&", "&B7 -> ЯСЕНЬ, ЛАК, ДСП 16, BC/BC | R163: 0 | S163: 0 | T163: 0 | AE163: ЯСЕНЬ, ЛАК, ДСП 16, BC/BC
P164: =K5&", "&H27&", "&B8 -> ЯСЕНЬ, ЛАК, ДСП 18, AB/AB | R164: 0 | S164: 0 | T164: 0 | AE164: ЯСЕНЬ, ЛАК, ДСП 18, AB/AB
P165: =K5&", "&H27&", "&B9 -> ЯСЕНЬ, ЛАК, ДСП 18, AB/BC | R165: 0 | S165: 0 | T165: 0 | AE165: ЯСЕНЬ, ЛАК, ДСП 18, AB/BC
P166: =K5&", "&H27&", "&B10 -> ЯСЕНЬ, ЛАК, ДСП 18, AB/карт. | R166: 0 | S166: 0 | T166: 0 | AE166: ЯСЕНЬ, ЛАК, ДСП 18, AB/карт.
P167: =K5&", "&H27&", "&B11 -> ЯСЕНЬ, ЛАК, ДСП 22, AB/AB | R167: 0 | S167: 0 | T167: 0 | AE167: ЯСЕНЬ, ЛАК, ДСП 22, AB/AB
P168: =K5&", "&H27&", "&B12 -> ЯСЕНЬ, ЛАК, ДСП 22, AB/BС | R168: 0 | S168: 0 | T168: 0 | AE168: ЯСЕНЬ, ЛАК, ДСП 22, AB/BС
P169: =K5&", "&H27&", "&B13 -> ЯСЕНЬ, ЛАК, ДСП 25, AB/AB | R169: 0 | S169: 0 | T169: 0 | AE169: ЯСЕНЬ, ЛАК, ДСП 25, AB/AB
P170: =K5&", "&H27&", "&B14 -> ЯСЕНЬ, ЛАК, ДСП 25, AB/BС | R170: 0 | S170: 0 | T170: 0 | AE170: ЯСЕНЬ, ЛАК, ДСП 25, AB/BС
P171: =K5&", "&H27&", "&B15 -> ЯСЕНЬ, ЛАК, ДСП 32, AB/AB | R171: 0 | S171: 0 | T171: 0 | AE171: ЯСЕНЬ, ЛАК, ДСП 32, AB/AB
P172: =K5&", "&H27&", "&B16 -> ЯСЕНЬ, ЛАК, ДСП 32, AB/BС | R172: 0 | S172: 0 | T172: 0 | AE172: ЯСЕНЬ, ЛАК, ДСП 32, AB/BС
P173: =K5&", "&H27&", "&B17 -> ЯСЕНЬ, ЛАК, ДСП 36, AB/AB | R173: 0 | S173: 0 | T173: 0 | AE173: ЯСЕНЬ, ЛАК, ДСП 36, AB/AB
P174: =K5&", "&H27&", "&B18 -> ЯСЕНЬ, ЛАК, ДСП 36, AB/BС | R174: 0 | S174: 0 | T174: 0 | AE174: ЯСЕНЬ, ЛАК, ДСП 36, AB/BС
P175: =K5&", "&H27&", "&B19 -> ЯСЕНЬ, ЛАК, МДФ 9, AB/AB | R175: 0 | S175: 0 | T175: 0 | AE175: ЯСЕНЬ, ЛАК, МДФ 9, AB/AB
P176: =K5&", "&H27&", "&B20 -> ЯСЕНЬ, ЛАК, МДФ 9, AB/BC | R176: 0 | S176: 0 | T176: 0 | AE176: ЯСЕНЬ, ЛАК, МДФ 9, AB/BC
P177: =K5&", "&H27&", "&B21 -> ЯСЕНЬ, ЛАК, МДФ 9, BC/BC | R177: 0 | S177: 0 | T177: 0 | AE177: ЯСЕНЬ, ЛАК, МДФ 9, BC/BC
P178: =K5&", "&H27&", "&B22 -> ЯСЕНЬ, ЛАК, МДФ 19, AB/AB | R178: 0 | S178: 0 | T178: 0 | AE178: ЯСЕНЬ, ЛАК, МДФ 19, AB/AB
P179: =K5&", "&H27&", "&B23 -> ЯСЕНЬ, ЛАК, МДФ 19, AB/BC | R179: 0 | S179: 0 | T179: 0 | AE179: ЯСЕНЬ, ЛАК, МДФ 19, AB/BC
P180: =K5&", "&H27&", "&B24 -> ЯСЕНЬ, ЛАК, МДФ 19, AB/карт. | R180: 0 | S180: 0 | T180: 0 | AE180: ЯСЕНЬ, ЛАК, МДФ 19, AB/карт.
P181: =K5&", "&H27&", "&B25 -> ЯСЕНЬ, ЛАК, МДФ 26, AB/AB | R181: 0 | S181: 0 | T181: 0 | AE181: ЯСЕНЬ, ЛАК, МДФ 26, AB/AB
P182: =K5&", "&H27&", "&B26 -> ЯСЕНЬ, ЛАК, МДФ 26, AB/BC | R182: 0 | S182: 0 | T182: 0 | AE182: ЯСЕНЬ, ЛАК, МДФ 26, AB/BC
P183: =K5&", "&H27&", "&B27 -> ЯСЕНЬ, ЛАК, МДФ 37, AB/AB | R183: 0 | S183: 0 | T183: 0 | AE183: ЯСЕНЬ, ЛАК, МДФ 37, AB/AB
P184: =K5&", "&H27&", "&B28 -> ЯСЕНЬ, ЛАК, МДФ 37, AB/BC | R184: 0 | S184: 0 | T184: 0 | AE184: ЯСЕНЬ, ЛАК, МДФ 37, AB/BC
P185: =K5&", "&H28&", "&B3 -> ЯСЕНЬ, МАСЛО, ДСП 10, AB/лам. | R185: 0 | S185: 0 | T185: 0 | AE185: ЯСЕНЬ, МАСЛО, ДСП 10, AB/лам.
P186: =K5&", "&H28&", "&B4 -> ЯСЕНЬ, МАСЛО, ДСП 16, AB/AB | R186: 0 | S186: 0 | T186: 0 | AE186: ЯСЕНЬ, МАСЛО, ДСП 16, AB/AB
P187: =K5&", "&H28&", "&B5 -> ЯСЕНЬ, МАСЛО, ДСП 16, AB/BC | R187: 0 | S187: 0 | T187: 0 | AE187: ЯСЕНЬ, МАСЛО, ДСП 16, AB/BC
P188: =K5&", "&H28&", "&B6 -> ЯСЕНЬ, МАСЛО, ДСП 16, AB/карт. | R188: 0 | S188: 0 | T188: 0 | AE188: ЯСЕНЬ, МАСЛО, ДСП 16, AB/карт.
P189: =K5&", "&H28&", "&B7 -> ЯСЕНЬ, МАСЛО, ДСП 16, BC/BC | R189: 0 | S189: 0 | T189: 0 | AE189: ЯСЕНЬ, МАСЛО, ДСП 16, BC/BC
P190: =K5&", "&H28&", "&B8 -> ЯСЕНЬ, МАСЛО, ДСП 18, AB/AB | R190: 0 | S190: 0 | T190: 0 | AE190: ЯСЕНЬ, МАСЛО, ДСП 18, AB/AB
P191: =K5&", "&H28&", "&B9 -> ЯСЕНЬ, МАСЛО, ДСП 18, AB/BC | R191: 0 | S191: 0 | T191: 0 | AE191: ЯСЕНЬ, МАСЛО, ДСП 18, AB/BC
P192: =K5&", "&H28&", "&B10 -> ЯСЕНЬ, МАСЛО, ДСП 18, AB/карт. | R192: 0 | S192: 0 | T192: 0 | AE192: ЯСЕНЬ, МАСЛО, ДСП 18, AB/карт.
P193: =K5&", "&H28&", "&B11 -> ЯСЕНЬ, МАСЛО, ДСП 22, AB/AB | R193: 0 | S193: 0 | T193: 0 | AE193: ЯСЕНЬ, МАСЛО, ДСП 22, AB/AB
P194: =K5&", "&H28&", "&B12 -> ЯСЕНЬ, МАСЛО, ДСП 22, AB/BС | R194: 0 | S194: 0 | T194: 0 | AE194: ЯСЕНЬ, МАСЛО, ДСП 22, AB/BС
P195: =K5&", "&H28&", "&B13 -> ЯСЕНЬ, МАСЛО, ДСП 25, AB/AB | R195: =ROUNDUP(Q195*К_НАЦЕНКА,0) -> 0 | S195: =ROUNDUP(R195/EURO_PRISE,0) -> 0 | T195: =ROUNDUP(R195/USD_PRISE,0) -> 0 | AE195: ЯСЕНЬ, МАСЛО, ДСП 25, AB/AB
P196: =K5&", "&H28&", "&B14 -> ЯСЕНЬ, МАСЛО, ДСП 25, AB/BС | R196: 0 | S196: 0 | T196: 0 | AE196: ЯСЕНЬ, МАСЛО, ДСП 25, AB/BС
P197: =K5&", "&H28&", "&B15 -> ЯСЕНЬ, МАСЛО, ДСП 32, AB/AB | R197: 0 | S197: 0 | T197: 0 | AE197: ЯСЕНЬ, МАСЛО, ДСП 32, AB/AB
P198: =K5&", "&H28&", "&B16 -> ЯСЕНЬ, МАСЛО, ДСП 32, AB/BС | R198: 0 | S198: 0 | T198: 0 | AE198: ЯСЕНЬ, МАСЛО, ДСП 32, AB/BС
P199: =K5&", "&H28&", "&B17 -> ЯСЕНЬ, МАСЛО, ДСП 36, AB/AB | R199: 0 | S199: 0 | T199: 0 | AE199: ЯСЕНЬ, МАСЛО, ДСП 36, AB/AB
P200: =K5&", "&H28&", "&B18 -> ЯСЕНЬ, МАСЛО, ДСП 36, AB/BС | R200: 0 | S200: 0 | T200: 0 | AE200: ЯСЕНЬ, МАСЛО, ДСП 36, AB/BС
... 10 more rows

Sheet МАТЕРИАЛЫ
D1: ВИДЫ ПЛИТ ОБЛИЦОВАННЫХ ШПОНОМ
D2: ВИДЫ ОТДЕЛКИ И ДЕКОРЫ
D3: ='@'!M18 -> РЕДАКЦИЯ : 15.02.2018
A5: ВИДЫ ПЛИТ ОБЛИЦОВАННЫХ ШПОНОМ
C6: ПЛИТНЫЙ МАТЕРИАЛ ОСНОВЫ
C7: ДСП | E7: МДФ
A8: ВАРИАНТЫ ОБЛИЦОВКИ | B8: AB/AB | C8: 16, 18, 22, 25, 32, 36 | E8: 9, 19, 26, 37 | G8: ТОЛЩИНЫ ПЛИТ
B9: AB/BC | C9: 16, 18, 22, 25, 32, 36 | E9: 9, 19, 26, 37
B10: BC/BC | C10: 16 | E10: 9
B11: AB/карт. | C11: 16, 18 | E11: 19
B12: AB/лам. | C12: 10 | E12: нет
A13: Материалы основы : плиты ДСП, МДФ. Материал облицовки : шпон строганный натуральный, толщ. 0,5 мм, срез тангентальный и радиальный. Материал кромки : шпон строганный натуральный, толщ. 1 мм Древесные породы шпона : ДУБ и ЯСЕНЬ. Применяемые сорта шпона : AB, BC. Варианты исполнения обратной поверхности : [лам.] — матовая ламинированная поверхность, декор БЕЛЫЙ, плита основы ЛДСП KRONOSPAN®; [карт.] — облицовка картоном хром-эрзац ( применяется для изготовления стеновых панелей ).
A14: ВИДЫ ОТДЕЛКИ И ДЕКОРЫ
E15: ДРЕВЕСНАЯ ПОРОДА
E16: ДУБ | F16: ЯСЕНЬ
A17: ВАРИАНТЫ ОТДЕЛКИ | B17: ЭМАЛЬ | C17: БЕЛЫЙ | E17: ● | F17: ● | G17: ПРИМЕНЯЕМЫЕ ДЕКОРЫ
B18: ЛАК | C18: ЧЁРНЫЙ | E18: ● | F18: ●
C19: ОЛЬМОНЕРО | E19: ●
C20: МАХАГОНИ БРАУН | E20: ●
C21: СПЕССАРТ | E21: ●
C22: ТАБАК ДЫМЧАТЫЙ | E22: ●
C23: ГРЕЙ | E23: ●
C24: ШИЛЬФ МАРОН | E24: ●
C25: РОВЕРА НАТУРАЛ | E25: ●
B26: МАСЛО | C26: ПАЛИСАНДР | E26: ● | F26: ●
C27: ЭБОНИ | E27: ●
C28: ЦЕМЕНТ | E28: ●
A29: Для вариантов отделки поверхностей ЭМАЛЬЮ и ЛАКОМ применяются компоненты производства компании ADLER®, Австрия; www.adler-lacke.com.ua; Для варианта отделки МАСЛОМ применяются твёрдовосковые эмульсии на основе натуральных масел производства компании REMMERS®, Германия; www.remmers.ua;

Sheet ЦЕНЫ—EURO
D1: СТОИМОСТЬ ШПОНИРОВАННЫХ ПЛИТНЫХ ДЕТАЛЕЙ
D2: РОЗНИЧНЫЕ ЦЕНЫ (EURO)
D3: =РЕДАКЦИЯ -> РЕДАКЦИЯ : 15.02.2018
A6: СТОИМОСТЬ ШПОНИРОВАННЫХ ПЛИТНЫХ ДЕТАЛЕЙ ( ЗА М.КВ. )
A8: МАТЕРИАЛЫ ПЛИТНЫХ ОСНОВ, ВИДЫ ОБЛИЦОВКИ ШПОНОМ | C8: ДУБ | G8: ЯСЕНЬ
C9: Б/О | D9: ЭМАЛЬ | E9: ЛАК | F9: МАСЛО | G9: Б/О | H9: ЭМАЛЬ | I9: ЛАК | J9: МАСЛО
A10: ДСП | B10: ДСП 10, AB/лам. | C10: =IF('@'!S3>0,'@'!S3,"") ->  | D10: =IF('@'!S29>0,'@'!S29,"") ->  | E10: =IF('@'!S55>0,'@'!S55,"") -> 54 | F10: =IF('@'!S81>0,'@'!S81,"") -> 43 | G10: =IF('@'!S107>0,'@'!S107,"") ->  | H10: =IF('@'!S133>0,'@'!S133,"") ->  | I10: =IF('@'!S159>0,'@'!S159,"") ->  | J10: =IF('@'!S185>0,'@'!S185,"") -> 
B11: ДСП 16, AB/AB | C11: =IF('@'!S4>0,'@'!S4,"") ->  | D11: =IF('@'!S30>0,'@'!S30,"") ->  | E11: =IF('@'!S56>0,'@'!S56,"") -> 77 | F11: =IF('@'!S82>0,'@'!S82,"") -> 51 | G11: =IF('@'!S108>0,'@'!S108,"") ->  | H11: =IF('@'!S134>0,'@'!S134,"") ->  | I11: =IF('@'!S160>0,'@'!S160,"") ->  | J11: =IF('@'!S186>0,'@'!S186,"") -> 
B12: ДСП 16, AB/BC | C12: =IF('@'!S5>0,'@'!S5,"") ->  | D12: =IF('@'!S31>0,'@'!S31,"") ->  | E12: =IF('@'!S57>0,'@'!S57,"") -> 74 | F12: =IF('@'!S83>0,'@'!S83,"") -> 48 | G12: =IF('@'!S109>0,'@'!S109,"") ->  | H12: =IF('@'!S135>0,'@'!S135,"") ->  | I12: =IF('@'!S161>0,'@'!S161,"") ->  | J12: =IF('@'!S187>0,'@'!S187,"") -> 
B13: ДСП 16, AB/карт. | C13: =IF('@'!S6>0,'@'!S6,"") ->  | D13: =IF('@'!S32>0,'@'!S32,"") ->  | E13: =IF('@'!S58>0,'@'!S58,"") -> 69 | F13: =IF('@'!S84>0,'@'!S84,"") -> 41 | G13: =IF('@'!S110>0,'@'!S110,"") ->  | H13: =IF('@'!S136>0,'@'!S136,"") ->  | I13: =IF('@'!S162>0,'@'!S162,"") ->  | J13: =IF('@'!S188>0,'@'!S188,"") -> 
B14: ДСП 16, BC/BC | C14: =IF('@'!S7>0,'@'!S7,"") ->  | D14: =IF('@'!S33>0,'@'!S33,"") ->  | E14: =IF('@'!S59>0,'@'!S59,"") -> 71 | F14: =IF('@'!S85>0,'@'!S85,"") -> 45 | G14: =IF('@'!S111>0,'@'!S111,"") ->  | H14: =IF('@'!S137>0,'@'!S137,"") ->  | I14: =IF('@'!S163>0,'@'!S163,"") ->  | J14: =IF('@'!S189>0,'@'!S189,"") -> 
B15: ДСП 18, AB/AB | C15: =IF('@'!S8>0,'@'!S8,"") ->  | D15: =IF('@'!S34>0,'@'!S34,"") ->  | E15: =IF('@'!S60>0,'@'!S60,"") -> 80 | F15: =IF('@'!S86>0,'@'!S86,"") -> 54 | G15: =IF('@'!S112>0,'@'!S112,"") ->  | H15: =IF('@'!S138>0,'@'!S138,"") ->  | I15: =IF('@'!S164>0,'@'!S164,"") ->  | J15: =IF('@'!S190>0,'@'!S190,"") -> 
B16: ДСП 18, AB/BC | C16: =IF('@'!S9>0,'@'!S9,"") ->  | D16: =IF('@'!S35>0,'@'!S35,"") ->  | E16: =IF('@'!S61>0,'@'!S61,"") -> 77 | F16: =IF('@'!S87>0,'@'!S87,"") -> 51 | G16: =IF('@'!S113>0,'@'!S113,"") ->  | H16: =IF('@'!S139>0,'@'!S139,"") ->  | I16: =IF('@'!S165>0,'@'!S165,"") ->  | J16: =IF('@'!S191>0,'@'!S191,"") -> 
B17: ДСП 18, AB/карт. | C17: =IF('@'!S10>0,'@'!S10,"") ->  | D17: =IF('@'!S36>0,'@'!S36,"") ->  | E17: =IF('@'!S62>0,'@'!S62,"") -> 72 | F17: =IF('@'!S88>0,'@'!S88,"") -> 44 | G17: =IF('@'!S114>0,'@'!S114,"") ->  | H17: =IF('@'!S140>0,'@'!S140,"") ->  | I17: =IF('@'!S166>0,'@'!S166,"") ->  | J17: =IF('@'!S192>0,'@'!S192,"") -> 
B18: ДСП 22, AB/AB | C18: =IF('@'!S11>0,'@'!S11,"") ->  | D18: =IF('@'!S37>0,'@'!S37,"") ->  | E18: =IF('@'!S63>0,'@'!S63,"") -> 80 | F18: =IF('@'!S89>0,'@'!S89,"") -> 54 | G18: =IF('@'!S115>0,'@'!S115,"") ->  | H18: =IF('@'!S141>0,'@'!S141,"") ->  | I18: =IF('@'!S167>0,'@'!S167,"") ->  | J18: =IF('@'!S193>0,'@'!S193,"") -> 
B19: ДСП 22, AB/BС | C19: =IF('@'!S12>0,'@'!S12,"") ->  | D19: =IF('@'!S38>0,'@'!S38,"") ->  | E19: =IF('@'!S64>0,'@'!S64,"") -> 77 | F19: =IF('@'!S90>0,'@'!S90,"") -> 51 | G19: =IF('@'!S116>0,'@'!S116,"") ->  | H19: =IF('@'!S142>0,'@'!S142,"") ->  | I19: =IF('@'!S168>0,'@'!S168,"") ->  | J19: =IF('@'!S194>0,'@'!S194,"") -> 
B20: ДСП 25, AB/AB | C20: =IF('@'!S13>0,'@'!S13,"") ->  | D20: =IF('@'!S39>0,'@'!S39,"") ->  | E20: =IF('@'!S65>0,'@'!S65,"") -> 86 | F20: =IF('@'!S91>0,'@'!S91,"") -> 60 | G20: =IF('@'!S117>0,'@'!S117,"") ->  | H20: =IF('@'!S143>0,'@'!S143,"") ->  | I20: =IF('@'!S169>0,'@'!S169,"") ->  | J20: =IF('@'!S195>0,'@'!S195,"") -> 
B21: ДСП 25, AB/BС | C21: =IF('@'!S14>0,'@'!S14,"") ->  | D21: =IF('@'!S40>0,'@'!S40,"") ->  | E21: =IF('@'!S66>0,'@'!S66,"") -> 82 | F21: =IF('@'!S92>0,'@'!S92,"") -> 56 | G21: =IF('@'!S118>0,'@'!S118,"") ->  | H21: =IF('@'!S144>0,'@'!S144,"") ->  | I21: =IF('@'!S170>0,'@'!S170,"") ->  | J21: =IF('@'!S196>0,'@'!S196,"") -> 
B22: ДСП 32, AB/AB | C22: =IF('@'!S15>0,'@'!S15,"") ->  | D22: =IF('@'!S41>0,'@'!S41,"") ->  | E22: =IF('@'!S67>0,'@'!S67,"") -> 91 | F22: =IF('@'!S93>0,'@'!S93,"") -> 65 | G22: =IF('@'!S119>0,'@'!S119,"") ->  | H22: =IF('@'!S145>0,'@'!S145,"") ->  | I22: =IF('@'!S171>0,'@'!S171,"") ->  | J22: =IF('@'!S197>0,'@'!S197,"") -> 
B23: ДСП 32, AB/BС | C23: =IF('@'!S16>0,'@'!S16,"") ->  | D23: =IF('@'!S42>0,'@'!S42,"") ->  | E23: =IF('@'!S68>0,'@'!S68,"") -> 88 | F23: =IF('@'!S94>0,'@'!S94,"") -> 62 | G23: =IF('@'!S120>0,'@'!S120,"") ->  | H23: =IF('@'!S146>0,'@'!S146,"") ->  | I23: =IF('@'!S172>0,'@'!S172,"") ->  | J23: =IF('@'!S198>0,'@'!S198,"") -> 
B24: ДСП 36, AB/AB | C24: =IF('@'!S17>0,'@'!S17,"") ->  | D24: =IF('@'!S43>0,'@'!S43,"") ->  | E24: =IF('@'!S69>0,'@'!S69,"") -> 94 | F24: =IF('@'!S95>0,'@'!S95,"") -> 68 | G24: =IF('@'!S121>0,'@'!S121,"") ->  | H24: =IF('@'!S147>0,'@'!S147,"") ->  | I24: =IF('@'!S173>0,'@'!S173,"") ->  | J24: =IF('@'!S199>0,'@'!S199,"") -> 
B25: ДСП 36, AB/BС | C25: =IF('@'!S18>0,'@'!S18,"") ->  | D25: =IF('@'!S44>0,'@'!S44,"") ->  | E25: =IF('@'!S70>0,'@'!S70,"") -> 91 | F25: =IF('@'!S96>0,'@'!S96,"") -> 65 | G25: =IF('@'!S122>0,'@'!S122,"") ->  | H25: =IF('@'!S148>0,'@'!S148,"") ->  | I25: =IF('@'!S174>0,'@'!S174,"") ->  | J25: =IF('@'!S200>0,'@'!S200,"") -> 
A26: МДФ | B26: МДФ 9, AB/AB | C26: =IF('@'!S19>0,'@'!S19,"") ->  | D26: =IF('@'!S45>0,'@'!S45,"") ->  | E26: =IF('@'!S71>0,'@'!S71,"") -> 80 | F26: =IF('@'!S97>0,'@'!S97,"") -> 54 | G26: =IF('@'!S123>0,'@'!S123,"") ->  | H26: =IF('@'!S149>0,'@'!S149,"") ->  | I26: =IF('@'!S175>0,'@'!S175,"") ->  | J26: =IF('@'!S201>0,'@'!S201,"") -> 
B27: МДФ 9, AB/BC | C27: =IF('@'!S20>0,'@'!S20,"") ->  | D27: =IF('@'!S46>0,'@'!S46,"") ->  | E27: =IF('@'!S72>0,'@'!S72,"") -> 77 | F27: =IF('@'!S98>0,'@'!S98,"") -> 51 | G27: =IF('@'!S124>0,'@'!S124,"") ->  | H27: =IF('@'!S150>0,'@'!S150,"") ->  | I27: =IF('@'!S176>0,'@'!S176,"") ->  | J27: =IF('@'!S202>0,'@'!S202,"") -> 
B28: МДФ 9, BC/BC | C28: =IF('@'!S21>0,'@'!S21,"") ->  | D28: =IF('@'!S47>0,'@'!S47,"") ->  | E28: =IF('@'!S73>0,'@'!S73,"") -> 74 | F28: =IF('@'!S99>0,'@'!S99,"") -> 48 | G28: =IF('@'!S125>0,'@'!S125,"") ->  | H28: =IF('@'!S151>0,'@'!S151,"") ->  | I28: =IF('@'!S177>0,'@'!S177,"") ->  | J28: =IF('@'!S203>0,'@'!S203,"") -> 
B29: МДФ 19, AB/AB | C29: =IF('@'!S22>0,'@'!S22,"") ->  | D29: =IF('@'!S48>0,'@'!S48,"") ->  | E29: =IF('@'!S74>0,'@'!S74,"") -> 86 | F29: =IF('@'!S100>0,'@'!S100,"") -> 60 | G29: =IF('@'!S126>0,'@'!S126,"") ->  | H29: =IF('@'!S152>0,'@'!S152,"") ->  | I29: =IF('@'!S178>0,'@'!S178,"") ->  | J29: =IF('@'!S204>0,'@'!S204,"") -> 
B30: МДФ 19, AB/BC | C30: =IF('@'!S23>0,'@'!S23,"") ->  | D30: =IF('@'!S49>0,'@'!S49,"") ->  | E30: =IF('@'!S75>0,'@'!S75,"") -> 82 | F30: =IF('@'!S101>0,'@'!S101,"") -> 56 | G30: =IF('@'!S127>0,'@'!S127,"") ->  | H30: =IF('@'!S153>0,'@'!S153,"") ->  | I30: =IF('@'!S179>0,'@'!S179,"") ->  | J30: =IF('@'!S205>0,'@'!S205,"") -> 
B31: МДФ 19, AB/карт. | C31: =IF('@'!S24>0,'@'!S24,"") ->  | D31: =IF('@'!S50>0,'@'!S50,"") ->  | E31: =IF('@'!S76>0,'@'!S76,"") -> 78 | F31: =IF('@'!S102>0,'@'!S102,"") -> 49 | G31: =IF('@'!S128>0,'@'!S128,"") ->  | H31: =IF('@'!S154>0,'@'!S154,"") ->  | I31: =IF('@'!S180>0,'@'!S180,"") ->  | J31: =IF('@'!S206>0,'@'!S206,"") -> 
B32: МДФ 26, AB/AB | C32: =IF('@'!S25>0,'@'!S25,"") ->  | D32: =IF('@'!S51>0,'@'!S51,"") ->  | E32: =IF('@'!S77>0,'@'!S77,"") -> 92 | F32: =IF('@'!S103>0,'@'!S103,"") -> 66 | G32: =IF('@'!S129>0,'@'!S129,"") ->  | H32: =IF('@'!S155>0,'@'!S155,"") ->  | I32: =IF('@'!S181>0,'@'!S181,"") ->  | J32: =IF('@'!S207>0,'@'!S207,"") -> 
B33: МДФ 26, AB/BC | C33: =IF('@'!S26>0,'@'!S26,"") ->  | D33: =IF('@'!S52>0,'@'!S52,"") ->  | E33: =IF('@'!S78>0,'@'!S78,"") -> 88 | F33: =IF('@'!S104>0,'@'!S104,"") -> 62 | G33: =IF('@'!S130>0,'@'!S130,"") ->  | H33: =IF('@'!S156>0,'@'!S156,"") ->  | I33: =IF('@'!S182>0,'@'!S182,"") ->  | J33: =IF('@'!S208>0,'@'!S208,"") -> 
B34: МДФ 37, AB/AB | C34: =IF('@'!S27>0,'@'!S27,"") ->  | D34: =IF('@'!S53>0,'@'!S53,"") ->  | E34: =IF('@'!S79>0,'@'!S79,"") -> 105 | F34: =IF('@'!S105>0,'@'!S105,"") -> 79 | G34: =IF('@'!S131>0,'@'!S131,"") ->  | H34: =IF('@'!S157>0,'@'!S157,"") ->  | I34: =IF('@'!S183>0,'@'!S183,"") ->  | J34: =IF('@'!S209>0,'@'!S209,"") -> 
B35: МДФ 37, AB/BC | C35: =IF('@'!S28>0,'@'!S28,"") ->  | D35: =IF('@'!S54>0,'@'!S54,"") ->  | E35: =IF('@'!S80>0,'@'!S80,"") -> 102 | F35: =IF('@'!S106>0,'@'!S106,"") -> 76 | G35: =IF('@'!S132>0,'@'!S132,"") ->  | H35: =IF('@'!S158>0,'@'!S158,"") ->  | I35: =IF('@'!S184>0,'@'!S184,"") ->  | J35: =IF('@'!S210>0,'@'!S210,"") -> 
A37: СТОИМОСТЬ КРОМКОВАНИЯ ШПОНОМ ПЛИТНЫХ ДЕТАЛЕЙ ( ЗА М.П. )
A39: КРОМКА [мм] | B39: ТОЛЩИНЫ ПЛИТ ОБЛИ-ЦОВАННЫХ ШПОНОМ | C39: ДУБ | G39: ЯСЕНЬ
C40: Б/О | D40: ЭМАЛЬ | E40: ЛАК | F40: МАСЛО | G40: Б/О | H40: ЭМАЛЬ | I40: ЛАК | J40: МАСЛО
A41: 22 | B41: 9, 10, 16, 18, 19 | C41: =IF('@'!Y3>0,'@'!Y3,"") ->  | D41: =IF('@'!Y7>0,'@'!Y7,"") ->  | E41: =IF('@'!Y11>0,'@'!Y11,"") ->  | F41: =IF('@'!Y15>0,'@'!Y15,"") ->  | G41: =IF('@'!Y19>0,'@'!Y19,"") ->  | H41: =IF('@'!Y23>0,'@'!Y23,"") ->  | I41: =IF('@'!Y27>0,'@'!Y27,"") ->  | J41: =IF('@'!Y31>0,'@'!Y31,"") -> 
A42: 28 | B42: 22, 25 | C42: =IF('@'!Y4>0,'@'!Y4,"") ->  | D42: =IF('@'!Y8>0,'@'!Y8,"") ->  | E42: =IF('@'!Y12>0,'@'!Y12,"") ->  | F42: =IF('@'!Y16>0,'@'!Y16,"") ->  | G42: =IF('@'!Y20>0,'@'!Y20,"") ->  | H42: =IF('@'!Y24>0,'@'!Y24,"") ->  | I42: =IF('@'!Y28>0,'@'!Y28,"") ->  | J42: =IF('@'!Y32>0,'@'!Y32,"") -> 
A43: 33 | B43: 26 | C43: =IF('@'!Y5>0,'@'!Y5,"") ->  | D43: =IF('@'!Y9>0,'@'!Y9,"") ->  | E43: =IF('@'!Y13>0,'@'!Y13,"") ->  | F43: =IF('@'!Y17>0,'@'!Y17,"") ->  | G43: =IF('@'!Y21>0,'@'!Y21,"") ->  | H43: =IF('@'!Y25>0,'@'!Y25,"") ->  | I43: =IF('@'!Y29>0,'@'!Y29,"") ->  | J43: =IF('@'!Y33>0,'@'!Y33,"") -> 
A44: 42 | B44: 32, 36, 37 | C44: =IF('@'!Y6>0,'@'!Y6,"") ->  | D44: =IF('@'!Y10>0,'@'!Y10,"") ->  | E44: =IF('@'!Y14>0,'@'!Y14,"") ->  | F44: =IF('@'!Y18>0,'@'!Y18,"") ->  | G44: =IF('@'!Y22>0,'@'!Y22,"") ->  | H44: =IF('@'!Y26>0,'@'!Y26,"") ->  | I44: =IF('@'!Y30>0,'@'!Y30,"") ->  | J44: =IF('@'!Y34>0,'@'!Y34,"") -> 

Sheet ЦЕНЫ—USD
D1: СТОИМОСТЬ ШПОНИРОВАННЫХ ПЛИТНЫХ ДЕТАЛЕЙ
D2: РОЗНИЧНЫЕ ЦЕНЫ (USD)
D3: =РЕДАКЦИЯ -> РЕДАКЦИЯ : 15.02.2018
A6: СТОИМОСТЬ ШПОНИРОВАННЫХ ПЛИТНЫХ ДЕТАЛЕЙ ( ЗА М.КВ. )
A8: МАТЕРИАЛЫ ПЛИТНЫХ ОСНОВ, ВИДЫ ОБЛИЦОВКИ ШПОНОМ | C8: ДУБ | G8: ЯСЕНЬ
C9: Б/О | D9: ЭМАЛЬ | E9: ЛАК | F9: МАСЛО | G9: Б/О | H9: ЭМАЛЬ | I9: ЛАК | J9: МАСЛО
A10: ДСП | B10: ДСП 10, AB/лам. | C10: =IF('@'!T3>0,'@'!T3,"") ->  | D10: =IF('@'!T29>0,'@'!T29,"") ->  | E10: =IF('@'!T55>0,'@'!T55,"") -> 66 | F10: =IF('@'!T81>0,'@'!T81,"") -> 53 | G10: =IF('@'!T107>0,'@'!T107,"") ->  | H10: =IF('@'!T133>0,'@'!T133,"") ->  | I10: =IF('@'!T159>0,'@'!T159,"") ->  | J10: =IF('@'!T185>0,'@'!T185,"") -> 
B11: ДСП 16, AB/AB | C11: =IF('@'!T4>0,'@'!T4,"") ->  | D11: =IF('@'!T30>0,'@'!T30,"") ->  | E11: =IF('@'!T56>0,'@'!T56,"") -> 94 | F11: =IF('@'!T82>0,'@'!T82,"") -> 62 | G11: =IF('@'!T108>0,'@'!T108,"") ->  | H11: =IF('@'!T134>0,'@'!T134,"") ->  | I11: =IF('@'!T160>0,'@'!T160,"") ->  | J11: =IF('@'!T186>0,'@'!T186,"") -> 
B12: ДСП 16, AB/BC | C12: =IF('@'!T5>0,'@'!T5,"") ->  | D12: =IF('@'!T31>0,'@'!T31,"") ->  | E12: =IF('@'!T57>0,'@'!T57,"") -> 90 | F12: =IF('@'!T83>0,'@'!T83,"") -> 59 | G12: =IF('@'!T109>0,'@'!T109,"") ->  | H12: =IF('@'!T135>0,'@'!T135,"") ->  | I12: =IF('@'!T161>0,'@'!T161,"") ->  | J12: =IF('@'!T187>0,'@'!T187,"") -> 
B13: ДСП 16, AB/карт. | C13: =IF('@'!T6>0,'@'!T6,"") ->  | D13: =IF('@'!T32>0,'@'!T32,"") ->  | E13: =IF('@'!T58>0,'@'!T58,"") -> 84 | F13: =IF('@'!T84>0,'@'!T84,"") -> 50 | G13: =IF('@'!T110>0,'@'!T110,"") ->  | H13: =IF('@'!T136>0,'@'!T136,"") ->  | I13: =IF('@'!T162>0,'@'!T162,"") ->  | J13: =IF('@'!T188>0,'@'!T188,"") -> 
B14: ДСП 16, BC/BC | C14: =IF('@'!T7>0,'@'!T7,"") ->  | D14: =IF('@'!T33>0,'@'!T33,"") ->  | E14: =IF('@'!T59>0,'@'!T59,"") -> 86 | F14: =IF('@'!T85>0,'@'!T85,"") -> 55 | G14: =IF('@'!T111>0,'@'!T111,"") ->  | H14: =IF('@'!T137>0,'@'!T137,"") ->  | I14: =IF('@'!T163>0,'@'!T163,"") ->  | J14: =IF('@'!T189>0,'@'!T189,"") -> 
B15: ДСП 18, AB/AB | C15: =IF('@'!T8>0,'@'!T8,"") ->  | D15: =IF('@'!T34>0,'@'!T34,"") ->  | E15: =IF('@'!T60>0,'@'!T60,"") -> 98 | F15: =IF('@'!T86>0,'@'!T86,"") -> 66 | G15: =IF('@'!T112>0,'@'!T112,"") ->  | H15: =IF('@'!T138>0,'@'!T138,"") ->  | I15: =IF('@'!T164>0,'@'!T164,"") ->  | J15: =IF('@'!T190>0,'@'!T190,"") -> 
B16: ДСП 18, AB/BC | C16: =IF('@'!T9>0,'@'!T9,"") ->  | D16: =IF('@'!T35>0,'@'!T35,"") ->  | E16: =IF('@'!T61>0,'@'!T61,"") -> 94 | F16: =IF('@'!T87>0,'@'!T87,"") -> 62 | G16: =IF('@'!T113>0,'@'!T113,"") ->  | H16: =IF('@'!T139>0,'@'!T139,"") ->  | I16: =IF('@'!T165>0,'@'!T165,"") ->  | J16: =IF('@'!T191>0,'@'!T191,"") -> 
B17: ДСП 18, AB/карт. | C17: =IF('@'!T10>0,'@'!T10,"") ->  | D17: =IF('@'!T36>0,'@'!T36,"") ->  | E17: =IF('@'!T62>0,'@'!T62,"") -> 88 | F17: =IF('@'!T88>0,'@'!T88,"") -> 53 | G17: =IF('@'!T114>0,'@'!T114,"") ->  | H17: =IF('@'!T140>0,'@'!T140,"") ->  | I17: =IF('@'!T166>0,'@'!T166,"") ->  | J17: =IF('@'!T192>0,'@'!T192,"") -> 
B18: ДСП 22, AB/AB | C18: =IF('@'!T11>0,'@'!T11,"") ->  | D18: =IF('@'!T37>0,'@'!T37,"") ->  | E18: =IF('@'!T63>0,'@'!T63,"") -> 98 | F18: =IF('@'!T89>0,'@'!T89,"") -> 66 | G18: =IF('@'!T115>0,'@'!T115,"") ->  | H18: =IF('@'!T141>0,'@'!T141,"") ->  | I18: =IF('@'!T167>0,'@'!T167,"") ->  | J18: =IF('@'!T193>0,'@'!T193,"") -> 
B19: ДСП 22, AB/BС | C19: =IF('@'!T12>0,'@'!T12,"") ->  | D19: =IF('@'!T38>0,'@'!T38,"") ->  | E19: =IF('@'!T64>0,'@'!T64,"") -> 94 | F19: =IF('@'!T90>0,'@'!T90,"") -> 62 | G19: =IF('@'!T116>0,'@'!T116,"") ->  | H19: =IF('@'!T142>0,'@'!T142,"") ->  | I19: =IF('@'!T168>0,'@'!T168,"") ->  | J19: =IF('@'!T194>0,'@'!T194,"") -> 
B20: ДСП 25, AB/AB | C20: =IF('@'!T13>0,'@'!T13,"") ->  | D20: =IF('@'!T39>0,'@'!T39,"") ->  | E20: =IF('@'!T65>0,'@'!T65,"") -> 105 | F20: =IF('@'!T91>0,'@'!T91,"") -> 73 | G20: =IF('@'!T117>0,'@'!T117,"") ->  | H20: =IF('@'!T143>0,'@'!T143,"") ->  | I20: =IF('@'!T169>0,'@'!T169,"") ->  | J20: =IF('@'!T195>0,'@'!T195,"") -> 
B21: ДСП 25, AB/BС | C21: =IF('@'!T14>0,'@'!T14,"") ->  | D21: =IF('@'!T40>0,'@'!T40,"") ->  | E21: =IF('@'!T66>0,'@'!T66,"") -> 101 | F21: =IF('@'!T92>0,'@'!T92,"") -> 69 | G21: =IF('@'!T118>0,'@'!T118,"") ->  | H21: =IF('@'!T144>0,'@'!T144,"") ->  | I21: =IF('@'!T170>0,'@'!T170,"") ->  | J21: =IF('@'!T196>0,'@'!T196,"") -> 
B22: ДСП 32, AB/AB | C22: =IF('@'!T15>0,'@'!T15,"") ->  | D22: =IF('@'!T41>0,'@'!T41,"") ->  | E22: =IF('@'!T67>0,'@'!T67,"") -> 111 | F22: =IF('@'!T93>0,'@'!T93,"") -> 80 | G22: =IF('@'!T119>0,'@'!T119,"") ->  | H22: =IF('@'!T145>0,'@'!T145,"") ->  | I22: =IF('@'!T171>0,'@'!T171,"") ->  | J22: =IF('@'!T197>0,'@'!T197,"") -> 
B23: ДСП 32, AB/BС | C23: =IF('@'!T16>0,'@'!T16,"") ->  | D23: =IF('@'!T42>0,'@'!T42,"") ->  | E23: =IF('@'!T68>0,'@'!T68,"") -> 108 | F23: =IF('@'!T94>0,'@'!T94,"") -> 76 | G23: =IF('@'!T120>0,'@'!T120,"") ->  | H23: =IF('@'!T146>0,'@'!T146,"") ->  | I23: =IF('@'!T172>0,'@'!T172,"") ->  | J23: =IF('@'!T198>0,'@'!T198,"") -> 
B24: ДСП 36, AB/AB | C24: =IF('@'!T17>0,'@'!T17,"") ->  | D24: =IF('@'!T43>0,'@'!T43,"") ->  | E24: =IF('@'!T69>0,'@'!T69,"") -> 115 | F24: =IF('@'!T95>0,'@'!T95,"") -> 83 | G24: =IF('@'!T121>0,'@'!T121,"") ->  | H24: =IF('@'!T147>0,'@'!T147,"") ->  | I24: =IF('@'!T173>0,'@'!T173,"") ->  | J24: =IF('@'!T199>0,'@'!T199,"") -> 
B25: ДСП 36, AB/BС | C25: =IF('@'!T18>0,'@'!T18,"") ->  | D25: =IF('@'!T44>0,'@'!T44,"") ->  | E25: =IF('@'!T70>0,'@'!T70,"") -> 111 | F25: =IF('@'!T96>0,'@'!T96,"") -> 79 | G25: =IF('@'!T122>0,'@'!T122,"") ->  | H25: =IF('@'!T148>0,'@'!T148,"") ->  | I25: =IF('@'!T174>0,'@'!T174,"") ->  | J25: =IF('@'!T200>0,'@'!T200,"") -> 
A26: МДФ | B26: МДФ 9, AB/AB | C26: =IF('@'!T19>0,'@'!T19,"") ->  | D26: =IF('@'!T45>0,'@'!T45,"") ->  | E26: =IF('@'!T71>0,'@'!T71,"") -> 98 | F26: =IF('@'!T97>0,'@'!T97,"") -> 66 | G26: =IF('@'!T123>0,'@'!T123,"") ->  | H26: =IF('@'!T149>0,'@'!T149,"") ->  | I26: =IF('@'!T175>0,'@'!T175,"") ->  | J26: =IF('@'!T201>0,'@'!T201,"") -> 
B27: МДФ 9, AB/BC | C27: =IF('@'!T20>0,'@'!T20,"") ->  | D27: =IF('@'!T46>0,'@'!T46,"") ->  | E27: =IF('@'!T72>0,'@'!T72,"") -> 94 | F27: =IF('@'!T98>0,'@'!T98,"") -> 62 | G27: =IF('@'!T124>0,'@'!T124,"") ->  | H27: =IF('@'!T150>0,'@'!T150,"") ->  | I27: =IF('@'!T176>0,'@'!T176,"") ->  | J27: =IF('@'!T202>0,'@'!T202,"") -> 
B28: МДФ 9, BC/BC | C28: =IF('@'!T21>0,'@'!T21,"") ->  | D28: =IF('@'!T47>0,'@'!T47,"") ->  | E28: =IF('@'!T73>0,'@'!T73,"") -> 90 | F28: =IF('@'!T99>0,'@'!T99,"") -> 58 | G28: =IF('@'!T125>0,'@'!T125,"") ->  | H28: =IF('@'!T151>0,'@'!T151,"") ->  | I28: =IF('@'!T177>0,'@'!T177,"") ->  | J28: =IF('@'!T203>0,'@'!T203,"") -> 
B29: МДФ 19, AB/AB | C29: =IF('@'!T22>0,'@'!T22,"") ->  | D29: =IF('@'!T48>0,'@'!T48,"") ->  | E29: =IF('@'!T74>0,'@'!T74,"") -> 105 | F29: =IF('@'!T100>0,'@'!T100,"") -> 73 | G29: =IF('@'!T126>0,'@'!T126,"") ->  | H29: =IF('@'!T152>0,'@'!T152,"") ->  | I29: =IF('@'!T178>0,'@'!T178,"") ->  | J29: =IF('@'!T204>0,'@'!T204,"") -> 
B30: МДФ 19, AB/BC | C30: =IF('@'!T23>0,'@'!T23,"") ->  | D30: =IF('@'!T49>0,'@'!T49,"") ->  | E30: =IF('@'!T75>0,'@'!T75,"") -> 101 | F30: =IF('@'!T101>0,'@'!T101,"") -> 69 | G30: =IF('@'!T127>0,'@'!T127,"") ->  | H30: =IF('@'!T153>0,'@'!T153,"") ->  | I30: =IF('@'!T179>0,'@'!T179,"") ->  | J30: =IF('@'!T205>0,'@'!T205,"") -> 
B31: МДФ 19, AB/карт. | C31: =IF('@'!T24>0,'@'!T24,"") ->  | D31: =IF('@'!T50>0,'@'!T50,"") ->  | E31: =IF('@'!T76>0,'@'!T76,"") -> 95 | F31: =IF('@'!T102>0,'@'!T102,"") -> 60 | G31: =IF('@'!T128>0,'@'!T128,"") ->  | H31: =IF('@'!T154>0,'@'!T154,"") ->  | I31: =IF('@'!T180>0,'@'!T180,"") ->  | J31: =IF('@'!T206>0,'@'!T206,"") -> 
B32: МДФ 26, AB/AB | C32: =IF('@'!T25>0,'@'!T25,"") ->  | D32: =IF('@'!T51>0,'@'!T51,"") ->  | E32: =IF('@'!T77>0,'@'!T77,"") -> 112 | F32: =IF('@'!T103>0,'@'!T103,"") -> 80 | G32: =IF('@'!T129>0,'@'!T129,"") ->  | H32: =IF('@'!T155>0,'@'!T155,"") ->  | I32: =IF('@'!T181>0,'@'!T181,"") ->  | J32: =IF('@'!T207>0,'@'!T207,"") -> 
B33: МДФ 26, AB/BC | C33: =IF('@'!T26>0,'@'!T26,"") ->  | D33: =IF('@'!T52>0,'@'!T52,"") ->  | E33: =IF('@'!T78>0,'@'!T78,"") -> 108 | F33: =IF('@'!T104>0,'@'!T104,"") -> 76 | G33: =IF('@'!T130>0,'@'!T130,"") ->  | H33: =IF('@'!T156>0,'@'!T156,"") ->  | I33: =IF('@'!T182>0,'@'!T182,"") ->  | J33: =IF('@'!T208>0,'@'!T208,"") -> 
B34: МДФ 37, AB/AB | C34: =IF('@'!T27>0,'@'!T27,"") ->  | D34: =IF('@'!T53>0,'@'!T53,"") ->  | E34: =IF('@'!T79>0,'@'!T79,"") -> 129 | F34: =IF('@'!T105>0,'@'!T105,"") -> 97 | G34: =IF('@'!T131>0,'@'!T131,"") ->  | H34: =IF('@'!T157>0,'@'!T157,"") ->  | I34: =IF('@'!T183>0,'@'!T183,"") ->  | J34: =IF('@'!T209>0,'@'!T209,"") -> 
B35: МДФ 37, AB/BC | C35: =IF('@'!T28>0,'@'!T28,"") ->  | D35: =IF('@'!T54>0,'@'!T54,"") ->  | E35: =IF('@'!T80>0,'@'!T80,"") -> 125 | F35: =IF('@'!T106>0,'@'!T106,"") -> 93 | G35: =IF('@'!T132>0,'@'!T132,"") ->  | H35: =IF('@'!T158>0,'@'!T158,"") ->  | I35: =IF('@'!T184>0,'@'!T184,"") ->  | J35: =IF('@'!T210>0,'@'!T210,"") -> 
A37: СТОИМОСТЬ КРОМКОВАНИЯ ШПОНОМ ПЛИТНЫХ ДЕТАЛЕЙ ( ЗА М.П. )
A39: КРОМКА [мм] | B39: ТОЛЩИНЫ ПЛИТ ОБЛИ-ЦОВАННЫХ ШПОНОМ | C39: ДУБ | G39: ЯСЕНЬ
C40: Б/О | D40: ЭМАЛЬ | E40: ЛАК | F40: МАСЛО | G40: Б/О | H40: ЭМАЛЬ | I40: ЛАК | J40: МАСЛО
A41: 22 | B41: 9, 10, 16, 18, 19 | C41: =IF('@'!Z3>0,'@'!Z3,"") ->  | D41: =IF('@'!Z7>0,'@'!Z7,"") ->  | E41: =IF('@'!Z11>0,'@'!Z11,"") ->  | F41: =IF('@'!Z15>0,'@'!Z15,"") ->  | G41: =IF('@'!Z19>0,'@'!Z19,"") ->  | H41: =IF('@'!Z23>0,'@'!Z23,"") ->  | I41: =IF('@'!Z27>0,'@'!Z27,"") ->  | J41: =IF('@'!Z31>0,'@'!Z31,"") -> 
A42: 28 | B42: 22, 25 | C42: =IF('@'!Z4>0,'@'!Z4,"") ->  | D42: =IF('@'!Z8>0,'@'!Z8,"") ->  | E42: =IF('@'!Z12>0,'@'!Z12,"") ->  | F42: =IF('@'!Z16>0,'@'!Z16,"") ->  | G42: =IF('@'!Z20>0,'@'!Z20,"") ->  | H42: =IF('@'!Z24>0,'@'!Z24,"") ->  | I42: =IF('@'!Z28>0,'@'!Z28,"") ->  | J42: =IF('@'!Z32>0,'@'!Z32,"") -> 
A43: 33 | B43: 26 | C43: =IF('@'!Z5>0,'@'!Z5,"") ->  | D43: =IF('@'!Z9>0,'@'!Z9,"") ->  | E43: =IF('@'!Z13>0,'@'!Z13,"") ->  | F43: =IF('@'!Z17>0,'@'!Z17,"") ->  | G43: =IF('@'!Z21>0,'@'!Z21,"") ->  | H43: =IF('@'!Z25>0,'@'!Z25,"") ->  | I43: =IF('@'!Z29>0,'@'!Z29,"") ->  | J43: =IF('@'!Z33>0,'@'!Z33,"") -> 
A44: 42 | B44: 32, 36, 37 | C44: =IF('@'!Z6>0,'@'!Z6,"") ->  | D44: =IF('@'!Z10>0,'@'!Z10,"") ->  | E44: =IF('@'!Z14>0,'@'!Z14,"") ->  | F44: =IF('@'!Z18>0,'@'!Z18,"") ->  | G44: =IF('@'!Z22>0,'@'!Z22,"") ->  | H44: =IF('@'!Z26>0,'@'!Z26,"") ->  | I44: =IF('@'!Z30>0,'@'!Z30,"") ->  | J44: =IF('@'!Z34>0,'@'!Z34,"") -> 

Sheet ЦЕНЫ—UAH
D1: СТОИМОСТЬ ШПОНИРОВАННЫХ ПЛИТНЫХ ДЕТАЛЕЙ
D2: РОЗНИЧНЫЕ ЦЕНЫ (UAH)
D3: ='@'!M18 -> РЕДАКЦИЯ : 15.02.2018
A6: СТОИМОСТЬ ШПОНИРОВАННЫХ ПЛИТНЫХ ДЕТАЛЕЙ ( ЗА М.КВ. )
A8: МАТЕРИАЛЫ ПЛИТНЫХ ОСНОВ, ВИДЫ ОБЛИЦОВКИ ШПОНОМ | C8: ДУБ | G8: ЯСЕНЬ
C9: Б/О | D9: ЭМАЛЬ | E9: ЛАК | F9: МАСЛО | G9: Б/О | H9: ЭМАЛЬ | I9: ЛАК | J9: МАСЛО
A10: ДСП | B10: ДСП 10, AB/лам. | C10: =IF('@'!S3*UAH_EURO>0,ROUNDUP('@'!S3*UAH_EURO,0),"") ->  | D10: =IF('@'!S29*UAH_EURO>0,ROUNDUP('@'!S29*UAH_EURO,0),"") ->  | E10: =IF('@'!S55*UAH_EURO>0,ROUNDUP('@'!S55*UAH_EURO,0),"") -> 1806 | F10: =IF('@'!S81*UAH_EURO>0,ROUNDUP('@'!S81*UAH_EURO,0),"") -> 1438 | G10: =IF('@'!S107*UAH_EURO>0,ROUNDUP('@'!S107*UAH_EURO,0),"") ->  | H10: =IF('@'!S133*UAH_EURO>0,ROUNDUP('@'!S133*UAH_EURO,0),"") ->  | I10: =IF('@'!S159*UAH_EURO>0,ROUNDUP('@'!S159*UAH_EURO,0),"") ->  | J10: =IF('@'!S185*UAH_EURO>0,ROUNDUP('@'!S185*UAH_EURO,0),"") -> 
B11: ДСП 16, AB/AB | C11: =IF('@'!S4*UAH_EURO>0,ROUNDUP('@'!S4*UAH_EURO,0),"") ->  | D11: =IF('@'!S30*UAH_EURO>0,ROUNDUP('@'!S30*UAH_EURO,0),"") ->  | E11: =IF('@'!S56*UAH_EURO>0,ROUNDUP('@'!S56*UAH_EURO,0),"") -> 2575 | F11: =IF('@'!S82*UAH_EURO>0,ROUNDUP('@'!S82*UAH_EURO,0),"") -> 1705 | G11: =IF('@'!S108*UAH_EURO>0,ROUNDUP('@'!S108*UAH_EURO,0),"") ->  | H11: =IF('@'!S134*UAH_EURO>0,ROUNDUP('@'!S134*UAH_EURO,0),"") ->  | I11: =IF('@'!S160*UAH_EURO>0,ROUNDUP('@'!S160*UAH_EURO,0),"") ->  | J11: =IF('@'!S186*UAH_EURO>0,ROUNDUP('@'!S186*UAH_EURO,0),"") -> 
B12: ДСП 16, AB/BC | C12: =IF('@'!S5*UAH_EURO>0,ROUNDUP('@'!S5*UAH_EURO,0),"") ->  | D12: =IF('@'!S31*UAH_EURO>0,ROUNDUP('@'!S31*UAH_EURO,0),"") ->  | E12: =IF('@'!S57*UAH_EURO>0,ROUNDUP('@'!S57*UAH_EURO,0),"") -> 2474 | F12: =IF('@'!S83*UAH_EURO>0,ROUNDUP('@'!S83*UAH_EURO,0),"") -> 1605 | G12: =IF('@'!S109*UAH_EURO>0,ROUNDUP('@'!S109*UAH_EURO,0),"") ->  | H12: =IF('@'!S135*UAH_EURO>0,ROUNDUP('@'!S135*UAH_EURO,0),"") ->  | I12: =IF('@'!S161*UAH_EURO>0,ROUNDUP('@'!S161*UAH_EURO,0),"") ->  | J12: =IF('@'!S187*UAH_EURO>0,ROUNDUP('@'!S187*UAH_EURO,0),"") -> 
B13: ДСП 16, AB/карт. | C13: =IF('@'!S6*UAH_EURO>0,ROUNDUP('@'!S6*UAH_EURO,0),"") ->  | D13: =IF('@'!S32*UAH_EURO>0,ROUNDUP('@'!S32*UAH_EURO,0),"") ->  | E13: =IF('@'!S58*UAH_EURO>0,ROUNDUP('@'!S58*UAH_EURO,0),"") -> 2307 | F13: =IF('@'!S84*UAH_EURO>0,ROUNDUP('@'!S84*UAH_EURO,0),"") -> 1371 | G13: =IF('@'!S110*UAH_EURO>0,ROUNDUP('@'!S110*UAH_EURO,0),"") ->  | H13: =IF('@'!S136*UAH_EURO>0,ROUNDUP('@'!S136*UAH_EURO,0),"") ->  | I13: =IF('@'!S162*UAH_EURO>0,ROUNDUP('@'!S162*UAH_EURO,0),"") ->  | J13: =IF('@'!S188*UAH_EURO>0,ROUNDUP('@'!S188*UAH_EURO,0),"") -> 
B14: ДСП 16, BC/BC | C14: =IF('@'!S7*UAH_EURO>0,ROUNDUP('@'!S7*UAH_EURO,0),"") ->  | D14: =IF('@'!S33*UAH_EURO>0,ROUNDUP('@'!S33*UAH_EURO,0),"") ->  | E14: =IF('@'!S59*UAH_EURO>0,ROUNDUP('@'!S59*UAH_EURO,0),"") -> 2374 | F14: =IF('@'!S85*UAH_EURO>0,ROUNDUP('@'!S85*UAH_EURO,0),"") -> 1505 | G14: =IF('@'!S111*UAH_EURO>0,ROUNDUP('@'!S111*UAH_EURO,0),"") ->  | H14: =IF('@'!S137*UAH_EURO>0,ROUNDUP('@'!S137*UAH_EURO,0),"") ->  | I14: =IF('@'!S163*UAH_EURO>0,ROUNDUP('@'!S163*UAH_EURO,0),"") ->  | J14: =IF('@'!S189*UAH_EURO>0,ROUNDUP('@'!S189*UAH_EURO,0),"") -> 
B15: ДСП 18, AB/AB | C15: =IF('@'!S8*UAH_EURO>0,ROUNDUP('@'!S8*UAH_EURO,0),"") ->  | D15: =IF('@'!S34*UAH_EURO>0,ROUNDUP('@'!S34*UAH_EURO,0),"") ->  | E15: =IF('@'!S60*UAH_EURO>0,ROUNDUP('@'!S60*UAH_EURO,0),"") -> 2675 | F15: =IF('@'!S86*UAH_EURO>0,ROUNDUP('@'!S86*UAH_EURO,0),"") -> 1806 | G15: =IF('@'!S112*UAH_EURO>0,ROUNDUP('@'!S112*UAH_EURO,0),"") ->  | H15: =IF('@'!S138*UAH_EURO>0,ROUNDUP('@'!S138*UAH_EURO,0),"") ->  | I15: =IF('@'!S164*UAH_EURO>0,ROUNDUP('@'!S164*UAH_EURO,0),"") ->  | J15: =IF('@'!S190*UAH_EURO>0,ROUNDUP('@'!S190*UAH_EURO,0),"") -> 
B16: ДСП 18, AB/BC | C16: =IF('@'!S9*UAH_EURO>0,ROUNDUP('@'!S9*UAH_EURO,0),"") ->  | D16: =IF('@'!S35*UAH_EURO>0,ROUNDUP('@'!S35*UAH_EURO,0),"") ->  | E16: =IF('@'!S61*UAH_EURO>0,ROUNDUP('@'!S61*UAH_EURO,0),"") -> 2575 | F16: =IF('@'!S87*UAH_EURO>0,ROUNDUP('@'!S87*UAH_EURO,0),"") -> 1705 | G16: =IF('@'!S113*UAH_EURO>0,ROUNDUP('@'!S113*UAH_EURO,0),"") ->  | H16: =IF('@'!S139*UAH_EURO>0,ROUNDUP('@'!S139*UAH_EURO,0),"") ->  | I16: =IF('@'!S165*UAH_EURO>0,ROUNDUP('@'!S165*UAH_EURO,0),"") ->  | J16: =IF('@'!S191*UAH_EURO>0,ROUNDUP('@'!S191*UAH_EURO,0),"") -> 
B17: ДСП 18, AB/карт. | C17: =IF('@'!S10*UAH_EURO>0,ROUNDUP('@'!S10*UAH_EURO,0),"") ->  | D17: =IF('@'!S36*UAH_EURO>0,ROUNDUP('@'!S36*UAH_EURO,0),"") ->  | E17: =IF('@'!S62*UAH_EURO>0,ROUNDUP('@'!S62*UAH_EURO,0),"") -> 2407 | F17: =IF('@'!S88*UAH_EURO>0,ROUNDUP('@'!S88*UAH_EURO,0),"") -> 1471 | G17: =IF('@'!S114*UAH_EURO>0,ROUNDUP('@'!S114*UAH_EURO,0),"") ->  | H17: =IF('@'!S140*UAH_EURO>0,ROUNDUP('@'!S140*UAH_EURO,0),"") ->  | I17: =IF('@'!S166*UAH_EURO>0,ROUNDUP('@'!S166*UAH_EURO,0),"") ->  | J17: =IF('@'!S192*UAH_EURO>0,ROUNDUP('@'!S192*UAH_EURO,0),"") -> 
B18: ДСП 22, AB/AB | C18: =IF('@'!S11*UAH_EURO>0,ROUNDUP('@'!S11*UAH_EURO,0),"") ->  | D18: =IF('@'!S37*UAH_EURO>0,ROUNDUP('@'!S37*UAH_EURO,0),"") ->  | E18: =IF('@'!S63*UAH_EURO>0,ROUNDUP('@'!S63*UAH_EURO,0),"") -> 2675 | F18: =IF('@'!S89*UAH_EURO>0,ROUNDUP('@'!S89*UAH_EURO,0),"") -> 1806 | G18: =IF('@'!S115*UAH_EURO>0,ROUNDUP('@'!S115*UAH_EURO,0),"") ->  | H18: =IF('@'!S141*UAH_EURO>0,ROUNDUP('@'!S141*UAH_EURO,0),"") ->  | I18: =IF('@'!S167*UAH_EURO>0,ROUNDUP('@'!S167*UAH_EURO,0),"") ->  | J18: =IF('@'!S193*UAH_EURO>0,ROUNDUP('@'!S193*UAH_EURO,0),"") -> 
B19: ДСП 22, AB/BС | C19: =IF('@'!S12*UAH_EURO>0,ROUNDUP('@'!S12*UAH_EURO,0),"") ->  | D19: =IF('@'!S38*UAH_EURO>0,ROUNDUP('@'!S38*UAH_EURO,0),"") ->  | E19: =IF('@'!S64*UAH_EURO>0,ROUNDUP('@'!S64*UAH_EURO,0),"") -> 2575 | F19: =IF('@'!S90*UAH_EURO>0,ROUNDUP('@'!S90*UAH_EURO,0),"") -> 1705 | G19: =IF('@'!S116*UAH_EURO>0,ROUNDUP('@'!S116*UAH_EURO,0),"") ->  | H19: =IF('@'!S142*UAH_EURO>0,ROUNDUP('@'!S142*UAH_EURO,0),"") ->  | I19: =IF('@'!S168*UAH_EURO>0,ROUNDUP('@'!S168*UAH_EURO,0),"") ->  | J19: =IF('@'!S194*UAH_EURO>0,ROUNDUP('@'!S194*UAH_EURO,0),"") -> 
B20: ДСП 25, AB/AB | C20: =IF('@'!S13*UAH_EURO>0,ROUNDUP('@'!S13*UAH_EURO,0),"") ->  | D20: =IF('@'!S39*UAH_EURO>0,ROUNDUP('@'!S39*UAH_EURO,0),"") ->  | E20: =IF('@'!S65*UAH_EURO>0,ROUNDUP('@'!S65*UAH_EURO,0),"") -> 2875 | F20: =IF('@'!S91*UAH_EURO>0,ROUNDUP('@'!S91*UAH_EURO,0),"") -> 2006 | G20: =IF('@'!S117*UAH_EURO>0,ROUNDUP('@'!S117*UAH_EURO,0),"") ->  | H20: =IF('@'!S143*UAH_EURO>0,ROUNDUP('@'!S143*UAH_EURO,0),"") ->  | I20: =IF('@'!S169*UAH_EURO>0,ROUNDUP('@'!S169*UAH_EURO,0),"") ->  | J20: =IF('@'!S195*UAH_EURO>0,ROUNDUP('@'!S195*UAH_EURO,0),"") -> 
B21: ДСП 25, AB/BС | C21: =IF('@'!S14*UAH_EURO>0,ROUNDUP('@'!S14*UAH_EURO,0),"") ->  | D21: =IF('@'!S40*UAH_EURO>0,ROUNDUP('@'!S40*UAH_EURO,0),"") ->  | E21: =IF('@'!S66*UAH_EURO>0,ROUNDUP('@'!S66*UAH_EURO,0),"") -> 2742 | F21: =IF('@'!S92*UAH_EURO>0,ROUNDUP('@'!S92*UAH_EURO,0),"") -> 1873 | G21: =IF('@'!S118*UAH_EURO>0,ROUNDUP('@'!S118*UAH_EURO,0),"") ->  | H21: =IF('@'!S144*UAH_EURO>0,ROUNDUP('@'!S144*UAH_EURO,0),"") ->  | I21: =IF('@'!S170*UAH_EURO>0,ROUNDUP('@'!S170*UAH_EURO,0),"") ->  | J21: =IF('@'!S196*UAH_EURO>0,ROUNDUP('@'!S196*UAH_EURO,0),"") -> 
B22: ДСП 32, AB/AB | C22: =IF('@'!S15*UAH_EURO>0,ROUNDUP('@'!S15*UAH_EURO,0),"") ->  | D22: =IF('@'!S41*UAH_EURO>0,ROUNDUP('@'!S41*UAH_EURO,0),"") ->  | E22: =IF('@'!S67*UAH_EURO>0,ROUNDUP('@'!S67*UAH_EURO,0),"") -> 3043 | F22: =IF('@'!S93*UAH_EURO>0,ROUNDUP('@'!S93*UAH_EURO,0),"") -> 2173 | G22: =IF('@'!S119*UAH_EURO>0,ROUNDUP('@'!S119*UAH_EURO,0),"") ->  | H22: =IF('@'!S145*UAH_EURO>0,ROUNDUP('@'!S145*UAH_EURO,0),"") ->  | I22: =IF('@'!S171*UAH_EURO>0,ROUNDUP('@'!S171*UAH_EURO,0),"") ->  | J22: =IF('@'!S197*UAH_EURO>0,ROUNDUP('@'!S197*UAH_EURO,0),"") -> 
B23: ДСП 32, AB/BС | C23: =IF('@'!S16*UAH_EURO>0,ROUNDUP('@'!S16*UAH_EURO,0),"") ->  | D23: =IF('@'!S42*UAH_EURO>0,ROUNDUP('@'!S42*UAH_EURO,0),"") ->  | E23: =IF('@'!S68*UAH_EURO>0,ROUNDUP('@'!S68*UAH_EURO,0),"") -> 2942 | F23: =IF('@'!S94*UAH_EURO>0,ROUNDUP('@'!S94*UAH_EURO,0),"") -> 2073 | G23: =IF('@'!S120*UAH_EURO>0,ROUNDUP('@'!S120*UAH_EURO,0),"") ->  | H23: =IF('@'!S146*UAH_EURO>0,ROUNDUP('@'!S146*UAH_EURO,0),"") ->  | I23: =IF('@'!S172*UAH_EURO>0,ROUNDUP('@'!S172*UAH_EURO,0),"") ->  | J23: =IF('@'!S198*UAH_EURO>0,ROUNDUP('@'!S198*UAH_EURO,0),"") -> 
B24: ДСП 36, AB/AB | C24: =IF('@'!S17*UAH_EURO>0,ROUNDUP('@'!S17*UAH_EURO,0),"") ->  | D24: =IF('@'!S43*UAH_EURO>0,ROUNDUP('@'!S43*UAH_EURO,0),"") ->  | E24: =IF('@'!S69*UAH_EURO>0,ROUNDUP('@'!S69*UAH_EURO,0),"") -> 3143 | F24: =IF('@'!S95*UAH_EURO>0,ROUNDUP('@'!S95*UAH_EURO,0),"") -> 2274 | G24: =IF('@'!S121*UAH_EURO>0,ROUNDUP('@'!S121*UAH_EURO,0),"") ->  | H24: =IF('@'!S147*UAH_EURO>0,ROUNDUP('@'!S147*UAH_EURO,0),"") ->  | I24: =IF('@'!S173*UAH_EURO>0,ROUNDUP('@'!S173*UAH_EURO,0),"") ->  | J24: =IF('@'!S199*UAH_EURO>0,ROUNDUP('@'!S199*UAH_EURO,0),"") -> 
B25: ДСП 36, AB/BС | C25: =IF('@'!S18*UAH_EURO>0,ROUNDUP('@'!S18*UAH_EURO,0),"") ->  | D25: =IF('@'!S44*UAH_EURO>0,ROUNDUP('@'!S44*UAH_EURO,0),"") ->  | E25: =IF('@'!S70*UAH_EURO>0,ROUNDUP('@'!S70*UAH_EURO,0),"") -> 3043 | F25: =IF('@'!S96*UAH_EURO>0,ROUNDUP('@'!S96*UAH_EURO,0),"") -> 2173 | G25: =IF('@'!S122*UAH_EURO>0,ROUNDUP('@'!S122*UAH_EURO,0),"") ->  | H25: =IF('@'!S148*UAH_EURO>0,ROUNDUP('@'!S148*UAH_EURO,0),"") ->  | I25: =IF('@'!S174*UAH_EURO>0,ROUNDUP('@'!S174*UAH_EURO,0),"") ->  | J25: =IF('@'!S200*UAH_EURO>0,ROUNDUP('@'!S200*UAH_EURO,0),"") -> 
A26: МДФ | B26: МДФ 9, AB/AB | C26: =IF('@'!S19*UAH_EURO>0,ROUNDUP('@'!S19*UAH_EURO,0),"") ->  | D26: =IF('@'!S45*UAH_EURO>0,ROUNDUP('@'!S45*UAH_EURO,0),"") ->  | E26: =IF('@'!S71*UAH_EURO>0,ROUNDUP('@'!S71*UAH_EURO,0),"") -> 2675 | F26: =IF('@'!S97*UAH_EURO>0,ROUNDUP('@'!S97*UAH_EURO,0),"") -> 1806 | G26: =IF('@'!S123*UAH_EURO>0,ROUNDUP('@'!S123*UAH_EURO,0),"") ->  | H26: =IF('@'!S149*UAH_EURO>0,ROUNDUP('@'!S149*UAH_EURO,0),"") ->  | I26: =IF('@'!S175*UAH_EURO>0,ROUNDUP('@'!S175*UAH_EURO,0),"") ->  | J26: =IF('@'!S201*UAH_EURO>0,ROUNDUP('@'!S201*UAH_EURO,0),"") -> 
B27: МДФ 9, AB/BC | C27: =IF('@'!S20*UAH_EURO>0,ROUNDUP('@'!S20*UAH_EURO,0),"") ->  | D27: =IF('@'!S46*UAH_EURO>0,ROUNDUP('@'!S46*UAH_EURO,0),"") ->  | E27: =IF('@'!S72*UAH_EURO>0,ROUNDUP('@'!S72*UAH_EURO,0),"") -> 2575 | F27: =IF('@'!S98*UAH_EURO>0,ROUNDUP('@'!S98*UAH_EURO,0),"") -> 1705 | G27: =IF('@'!S124*UAH_EURO>0,ROUNDUP('@'!S124*UAH_EURO,0),"") ->  | H27: =IF('@'!S150*UAH_EURO>0,ROUNDUP('@'!S150*UAH_EURO,0),"") ->  | I27: =IF('@'!S176*UAH_EURO>0,ROUNDUP('@'!S176*UAH_EURO,0),"") ->  | J27: =IF('@'!S202*UAH_EURO>0,ROUNDUP('@'!S202*UAH_EURO,0),"") -> 
B28: МДФ 9, BC/BC | C28: =IF('@'!S21*UAH_EURO>0,ROUNDUP('@'!S21*UAH_EURO,0),"") ->  | D28: =IF('@'!S47*UAH_EURO>0,ROUNDUP('@'!S47*UAH_EURO,0),"") ->  | E28: =IF('@'!S73*UAH_EURO>0,ROUNDUP('@'!S73*UAH_EURO,0),"") -> 2474 | F28: =IF('@'!S99*UAH_EURO>0,ROUNDUP('@'!S99*UAH_EURO,0),"") -> 1605 | G28: =IF('@'!S125*UAH_EURO>0,ROUNDUP('@'!S125*UAH_EURO,0),"") ->  | H28: =IF('@'!S151*UAH_EURO>0,ROUNDUP('@'!S151*UAH_EURO,0),"") ->  | I28: =IF('@'!S177*UAH_EURO>0,ROUNDUP('@'!S177*UAH_EURO,0),"") ->  | J28: =IF('@'!S203*UAH_EURO>0,ROUNDUP('@'!S203*UAH_EURO,0),"") -> 
B29: МДФ 19, AB/AB | C29: =IF('@'!S22*UAH_EURO>0,ROUNDUP('@'!S22*UAH_EURO,0),"") ->  | D29: =IF('@'!S48*UAH_EURO>0,ROUNDUP('@'!S48*UAH_EURO,0),"") ->  | E29: =IF('@'!S74*UAH_EURO>0,ROUNDUP('@'!S74*UAH_EURO,0),"") -> 2875 | F29: =IF('@'!S100*UAH_EURO>0,ROUNDUP('@'!S100*UAH_EURO,0),"") -> 2006 | G29: =IF('@'!S126*UAH_EURO>0,ROUNDUP('@'!S126*UAH_EURO,0),"") ->  | H29: =IF('@'!S152*UAH_EURO>0,ROUNDUP('@'!S152*UAH_EURO,0),"") ->  | I29: =IF('@'!S178*UAH_EURO>0,ROUNDUP('@'!S178*UAH_EURO,0),"") ->  | J29: =IF('@'!S204*UAH_EURO>0,ROUNDUP('@'!S204*UAH_EURO,0),"") -> 
B30: МДФ 19, AB/BC | C30: =IF('@'!S23*UAH_EURO>0,ROUNDUP('@'!S23*UAH_EURO,0),"") ->  | D30: =IF('@'!S49*UAH_EURO>0,ROUNDUP('@'!S49*UAH_EURO,0),"") ->  | E30: =IF('@'!S75*UAH_EURO>0,ROUNDUP('@'!S75*UAH_EURO,0),"") -> 2742 | F30: =IF('@'!S101*UAH_EURO>0,ROUNDUP('@'!S101*UAH_EURO,0),"") -> 1873 | G30: =IF('@'!S127*UAH_EURO>0,ROUNDUP('@'!S127*UAH_EURO,0),"") ->  | H30: =IF('@'!S153*UAH_EURO>0,ROUNDUP('@'!S153*UAH_EURO,0),"") ->  | I30: =IF('@'!S179*UAH_EURO>0,ROUNDUP('@'!S179*UAH_EURO,0),"") ->  | J30: =IF('@'!S205*UAH_EURO>0,ROUNDUP('@'!S205*UAH_EURO,0),"") -> 
B31: МДФ 19, AB/карт. | C31: =IF('@'!S24*UAH_EURO>0,ROUNDUP('@'!S24*UAH_EURO,0),"") ->  | D31: =IF('@'!S50*UAH_EURO>0,ROUNDUP('@'!S50*UAH_EURO,0),"") ->  | E31: =IF('@'!S76*UAH_EURO>0,ROUNDUP('@'!S76*UAH_EURO,0),"") -> 2608 | F31: =IF('@'!S102*UAH_EURO>0,ROUNDUP('@'!S102*UAH_EURO,0),"") -> 1639 | G31: =IF('@'!S128*UAH_EURO>0,ROUNDUP('@'!S128*UAH_EURO,0),"") ->  | H31: =IF('@'!S154*UAH_EURO>0,ROUNDUP('@'!S154*UAH_EURO,0),"") ->  | I31: =IF('@'!S180*UAH_EURO>0,ROUNDUP('@'!S180*UAH_EURO,0),"") ->  | J31: =IF('@'!S206*UAH_EURO>0,ROUNDUP('@'!S206*UAH_EURO,0),"") -> 
B32: МДФ 26, AB/AB | C32: =IF('@'!S25*UAH_EURO>0,ROUNDUP('@'!S25*UAH_EURO,0),"") ->  | D32: =IF('@'!S51*UAH_EURO>0,ROUNDUP('@'!S51*UAH_EURO,0),"") ->  | E32: =IF('@'!S77*UAH_EURO>0,ROUNDUP('@'!S77*UAH_EURO,0),"") -> 3076 | F32: =IF('@'!S103*UAH_EURO>0,ROUNDUP('@'!S103*UAH_EURO,0),"") -> 2207 | G32: =IF('@'!S129*UAH_EURO>0,ROUNDUP('@'!S129*UAH_EURO,0),"") ->  | H32: =IF('@'!S155*UAH_EURO>0,ROUNDUP('@'!S155*UAH_EURO,0),"") ->  | I32: =IF('@'!S181*UAH_EURO>0,ROUNDUP('@'!S181*UAH_EURO,0),"") ->  | J32: =IF('@'!S207*UAH_EURO>0,ROUNDUP('@'!S207*UAH_EURO,0),"") -> 
B33: МДФ 26, AB/BC | C33: =IF('@'!S26*UAH_EURO>0,ROUNDUP('@'!S26*UAH_EURO,0),"") ->  | D33: =IF('@'!S52*UAH_EURO>0,ROUNDUP('@'!S52*UAH_EURO,0),"") ->  | E33: =IF('@'!S78*UAH_EURO>0,ROUNDUP('@'!S78*UAH_EURO,0),"") -> 2942 | F33: =IF('@'!S104*UAH_EURO>0,ROUNDUP('@'!S104*UAH_EURO,0),"") -> 2073 | G33: =IF('@'!S130*UAH_EURO>0,ROUNDUP('@'!S130*UAH_EURO,0),"") ->  | H33: =IF('@'!S156*UAH_EURO>0,ROUNDUP('@'!S156*UAH_EURO,0),"") ->  | I33: =IF('@'!S182*UAH_EURO>0,ROUNDUP('@'!S182*UAH_EURO,0),"") ->  | J33: =IF('@'!S208*UAH_EURO>0,ROUNDUP('@'!S208*UAH_EURO,0),"") -> 
B34: МДФ 37, AB/AB | C34: =IF('@'!S27*UAH_EURO>0,ROUNDUP('@'!S27*UAH_EURO,0),"") ->  | D34: =IF('@'!S53*UAH_EURO>0,ROUNDUP('@'!S53*UAH_EURO,0),"") ->  | E34: =IF('@'!S79*UAH_EURO>0,ROUNDUP('@'!S79*UAH_EURO,0),"") -> 3511 | F34: =IF('@'!S105*UAH_EURO>0,ROUNDUP('@'!S105*UAH_EURO,0),"") -> 2641 | G34: =IF('@'!S131*UAH_EURO>0,ROUNDUP('@'!S131*UAH_EURO,0),"") ->  | H34: =IF('@'!S157*UAH_EURO>0,ROUNDUP('@'!S157*UAH_EURO,0),"") ->  | I34: =IF('@'!S183*UAH_EURO>0,ROUNDUP('@'!S183*UAH_EURO,0),"") ->  | J34: =IF('@'!S209*UAH_EURO>0,ROUNDUP('@'!S209*UAH_EURO,0),"") -> 
B35: МДФ 37, AB/BC | C35: =IF('@'!S28*UAH_EURO>0,ROUNDUP('@'!S28*UAH_EURO,0),"") ->  | D35: =IF('@'!S54*UAH_EURO>0,ROUNDUP('@'!S54*UAH_EURO,0),"") ->  | E35: =IF('@'!S80*UAH_EURO>0,ROUNDUP('@'!S80*UAH_EURO,0),"") -> 3410 | F35: =IF('@'!S106*UAH_EURO>0,ROUNDUP('@'!S106*UAH_EURO,0),"") -> 2541 | G35: =IF('@'!S132*UAH_EURO>0,ROUNDUP('@'!S132*UAH_EURO,0),"") ->  | H35: =IF('@'!S158*UAH_EURO>0,ROUNDUP('@'!S158*UAH_EURO,0),"") ->  | I35: =IF('@'!S184*UAH_EURO>0,ROUNDUP('@'!S184*UAH_EURO,0),"") ->  | J35: =IF('@'!S210*UAH_EURO>0,ROUNDUP('@'!S210*UAH_EURO,0),"") -> 
A37: СТОИМОСТЬ КРОМКОВАНИЯ ШПОНОМ ПЛИТНЫХ ДЕТАЛЕЙ ( ЗА М.П. )
A39: КРОМКА [мм] | B39: ТОЛЩИНЫ ПЛИТ ОБЛИ-ЦОВАННЫХ ШПОНОМ | C39: ДУБ | G39: ЯСЕНЬ
C40: Б/О | D40: ЭМАЛЬ | E40: ЛАК | F40: МАСЛО | G40: Б/О | H40: ЭМАЛЬ | I40: ЛАК | J40: МАСЛО
A41: 22 | B41: 9, 10, 16, 18, 19 | C41: =IF('@'!Y3*UAH_EURO>0,ROUNDUP('@'!Y3*UAH_EURO,0),"") ->  | D41: =IF('@'!Y7*UAH_EURO>0,ROUNDUP('@'!Y7*UAH_EURO,0),"") ->  | E41: =IF('@'!Y11*UAH_EURO>0,ROUNDUP('@'!Y11*UAH_EURO,0),"") ->  | F41: =IF('@'!Y15*UAH_EURO>0,ROUNDUP('@'!Y15*UAH_EURO,0),"") ->  | G41: =IF('@'!Y19*UAH_EURO>0,ROUNDUP('@'!Y19*UAH_EURO,0),"") ->  | H41: =IF('@'!Y23*UAH_EURO>0,ROUNDUP('@'!Y23*UAH_EURO,0),"") ->  | I41: =IF('@'!Y27*UAH_EURO>0,ROUNDUP('@'!Y27*UAH_EURO,0),"") ->  | J41: =IF('@'!Y31*UAH_EURO>0,ROUNDUP('@'!Y31*UAH_EURO,0),"") -> 
A42: 28 | B42: 22, 25 | C42: =IF('@'!Y4*UAH_EURO>0,ROUNDUP('@'!Y4*UAH_EURO,0),"") ->  | D42: =IF('@'!Y8*UAH_EURO>0,ROUNDUP('@'!Y8*UAH_EURO,0),"") ->  | E42: =IF('@'!Y12*UAH_EURO>0,ROUNDUP('@'!Y12*UAH_EURO,0),"") ->  | F42: =IF('@'!Y16*UAH_EURO>0,ROUNDUP('@'!Y16*UAH_EURO,0),"") ->  | G42: =IF('@'!Y20*UAH_EURO>0,ROUNDUP('@'!Y20*UAH_EURO,0),"") ->  | H42: =IF('@'!Y24*UAH_EURO>0,ROUNDUP('@'!Y24*UAH_EURO,0),"") ->  | I42: =IF('@'!Y28*UAH_EURO>0,ROUNDUP('@'!Y28*UAH_EURO,0),"") ->  | J42: =IF('@'!Y32*UAH_EURO>0,ROUNDUP('@'!Y32*UAH_EURO,0),"") -> 
A43: 33 | B43: 26 | C43: =IF('@'!Y5*UAH_EURO>0,ROUNDUP('@'!Y5*UAH_EURO,0),"") ->  | D43: =IF('@'!Y9*UAH_EURO>0,ROUNDUP('@'!Y9*UAH_EURO,0),"") ->  | E43: =IF('@'!Y13*UAH_EURO>0,ROUNDUP('@'!Y13*UAH_EURO,0),"") ->  | F43: =IF('@'!Y17*UAH_EURO>0,ROUNDUP('@'!Y17*UAH_EURO,0),"") ->  | G43: =IF('@'!Y21*UAH_EURO>0,ROUNDUP('@'!Y21*UAH_EURO,0),"") ->  | H43: =IF('@'!Y25*UAH_EURO>0,ROUNDUP('@'!Y25*UAH_EURO,0),"") ->  | I43: =IF('@'!Y29*UAH_EURO>0,ROUNDUP('@'!Y29*UAH_EURO,0),"") ->  | J43: =IF('@'!Y33*UAH_EURO>0,ROUNDUP('@'!Y33*UAH_EURO,0),"") -> 
A44: 42 | B44: 32, 36, 37 | C44: =IF('@'!Y6*UAH_EURO>0,ROUNDUP('@'!Y6*UAH_EURO,0),"") ->  | D44: =IF('@'!Y10*UAH_EURO>0,ROUNDUP('@'!Y10*UAH_EURO,0),"") ->  | E44: =IF('@'!Y14*UAH_EURO>0,ROUNDUP('@'!Y14*UAH_EURO,0),"") ->  | F44: =IF('@'!Y18*UAH_EURO>0,ROUNDUP('@'!Y18*UAH_EURO,0),"") ->  | G44: =IF('@'!Y22*UAH_EURO>0,ROUNDUP('@'!Y22*UAH_EURO,0),"") ->  | H44: =IF('@'!Y26*UAH_EURO>0,ROUNDUP('@'!Y26*UAH_EURO,0),"") ->  | I44: =IF('@'!Y30*UAH_EURO>0,ROUNDUP('@'!Y30*UAH_EURO,0),"") ->  | J44: =IF('@'!Y34*UAH_EURO>0,ROUNDUP('@'!Y34*UAH_EURO,0),"") -> 
A47: КУРС UAH/EURO : | C47: 33.43
A48: ДАТА : | C48: 2018-02-15

Sheet ЗАКАЗ—EURO—USD
C1: ЗАКАЗ НА ИЗГОТОВЛЕНИЕ ШПОНИРОВАННЫХ ДЕТАЛЕЙ
C3: ЗАКАЗЧИК : | K3: ДАТА ОФОРМЛЕНИЯ ЗАКАЗА :
C4: Мебельная фабрика "DesignProject" | K4: 15.02.2018
C5: АДРЕС :
C6: г. Киев, просп. Шевченко, 32 | K6: НОМЕР ЗАКАЗА :
C7: ТЕЛЕФОН, E-MAIL : | K7: зак. ###, (1/3)
C8: тел. 096-238-53-28, designprojectr@mail.com
A10: ДРЕВЕСНАЯ ПОРОДА ШПОНА : | E10: ДОПОЛНИТЕЛЬНЫЕ ТЕХНИЧЕСКИЕ ТРЕБОВАНИЯ :
A11: ДУБ (тангентальный) | E11: Текстуру шпона по внешним сторонам деталей поз.3, 4, 5, совместить согласно чертежам. Чертежи и схемы расположения деталей в приложении кзаказу.
A12: ВИД ОТДЕЛКИ И ДЕКОР :
A13: БЕЗ ОТДЕЛКИ
U14: КОЛ. СТОРОН | W14: М.П. | X14: М.КВ.
A15: № | B15: МАТЕРИАЛ И ТОЛЩ. ПЛИТЫ С ВАРИАНТОМ ОБЛИЦОВКИ | C15: ДЛИНЫ СТОРОН | E15: КРОМКОВАНИЕ | G15: ПЛОЩ. И МАССА ДЕТАЛИ | I15: ОБЩ. ПЛОЩ. И МАССА | K15: ЦЕНА ДЕТ. | L15: КОЛ. | M15: СТОИМОСТЬ | O15: ИНДЕКС ПЛИТЫ | P15: ЦЕНА КРОМКИ [вал./м.] | Q15: ЦЕНА ПЛИТЫ [вал./м.п.] | R15: СТОИМОСТЬ КРОМКИ [вал.] | S15: СТОИМОСТЬ ПЛИТЫ [вал.] | T15: СТОИМОСТЬ ДЕТАЛИ [вал.] | U15: КРОМКОВАНИЕ | W15: ПЕРИМЕТР | X15: ПЛОЩАДЬ | Y15: ВЕС ПЛИТЫ [кг/м.кв.] | Z15: ВЕС ДЕТАЛИ | AA15: КРОМКА | AB15: ШПОН | AC15: ОТДЕЛКА | AD15: КРОМКА+ОТДЕЛКА | AE15: ШПОН+ОТДЕЛКА+МАТЕРИАЛ И ТОЛЩ. ПЛИТЫ С ВАРИАНТОМ ОБЛИЦОВКИ
C16: X, мм | D16: Y, мм | E16: кол. X | F16: кол. Y | G16: м.кв. | H16: кг | I16: м.кв. | J16: кг | K16: =M45 -> USD | L16: шт. | M16: =M45 -> USD | U16: KX | V16: KY | W16: X×KX+Y×KY | X16: X×Y | Z16: КГ
G17: =IF(X17>0,X17," ") ->  | H17: =IF(C17*D17*O17>0,Z17," ") ->  | I17: =IF(X17*L17>0,X17*L17,"") ->  | J17: =IF(C17*D17*O17*L17>0,H17*L17," ") ->  | K17: =IF(C17*D17*O17>0,ROUNDUP(T17,2)," ") ->  | M17: =IF(C17*D17*L17*O17>0,K17*L17," ") ->  | O17: =IF(B17<>"",1,0) -> 0 | P17: =INDEX('@'!V3:Z34,MATCH(AD17,'@'!V3:V34,0),T48) ->  | Q17: =INDEX('@'!P3:T210,MATCH(AE17,'@'!P3:P210,0),T48) ->  | R17: =P17*W17 ->  | S17: =Q17*X17 ->  | T17: =R17+S17 ->  | U17: =IF(E17="",0,IF(E17=КРОМКА_A0,0,IF(E17=КРОМКА_A1,1,IF(E17=КРОМКА_A2,2)))) -> 0 | V17: =IF(F17="",0,IF(F17=КРОМКА_B0,0,IF(F17=КРОМКА_B1,1,IF(F17=КРОМКА_B2,2)))) -> 0 | W17: =(C17*U17+D17*V17)/1000 -> 0 | X17: =C17*D17/1000000 -> 0 | Y17: =INDEX('@'!B3:F28,MATCH(B17,ПЛИТА_ТИП,0),5) ->  | Z17: =IF(Y17*X17<>0,Y17*X17,0) ->  | AA17: =INDEX('@'!B3:F28,MATCH(B17,ПЛИТА_ТИП,0),4) ->  | AB17: =INDEX('@'!J3:K6,MATCH(A11,ШПОН_ДЕРЕВО,0),2) -> ДУБ | AC17: =INDEX('@'!J8:K18,MATCH(A13,ОТДЕЛКА_ДЕКОРЫ,0),2) -> Б/О | AD17: =AB17&" "&AA17&", "&AC17 ->  | AE17: =AB17&", "&AC17&", "&B17 -> ДУБ, Б/О,
G18: =IF(X18>0,X18," ") ->  | H18: =IF(C18*D18*O18>0,Z18," ") ->  | I18: =IF(X18*L18>0,X18*L18,"") ->  | J18: =IF(C18*D18*O18*L18>0,H18*L18," ") ->  | K18: =IF(C18*D18*O18>0,ROUNDUP(T18,2)," ") ->  | O18: 0 | P18: =INDEX('@'!V3:Z34,MATCH(AD18,'@'!V3:V34,0),T48) ->  | Q18: =INDEX('@'!P3:T210,MATCH(AE18,'@'!P3:P210,0),T48) ->  | R18: =P18*W18 ->  | S18: =Q18*X18 ->  | T18: =R18+S18 ->  | U18: 0 | V18: 0 | W18: =(C18*U18+D18*V18)/1000 -> 0 | X18: =C18*D18/1000000 -> 0 | Y18: =INDEX('@'!B3:F28,MATCH(B18,ПЛИТА_ТИП,0),5) ->  | Z18: =IF(Y18*X18<>0,Y18*X18,0) ->  | AA18: =INDEX('@'!B3:F28,MATCH(B18,ПЛИТА_ТИП,0),4) ->  | AB18: =INDEX('@'!J3:K6,MATCH(A11,ШПОН_ДЕРЕВО,0),2) -> ДУБ | AC18: =INDEX('@'!J8:K18,MATCH(A13,ОТДЕЛКА_ДЕКОРЫ,0),2) -> Б/О | AD18: =AB18&" "&AA18&", "&AC18 ->  | AE18: ДУБ, Б/О,
O19: 0 | P19: =INDEX('@'!V3:Z34,MATCH(AD19,'@'!V3:V34,0),T48) ->  | Q19: =INDEX('@'!P3:T210,MATCH(AE19,'@'!P3:P210,0),T48) ->  | U19: 0 | V19: 0 | W19: 0 | X19: 0 | Y19: =INDEX('@'!B3:F28,MATCH(B19,ПЛИТА_ТИП,0),5) ->  | AA19: =INDEX('@'!B3:F28,MATCH(B19,ПЛИТА_ТИП,0),4) ->  | AB19: =INDEX('@'!J3:K6,MATCH(A11,ШПОН_ДЕРЕВО,0),2) -> ДУБ | AC19: =INDEX('@'!J8:K18,MATCH(A13,ОТДЕЛКА_ДЕКОРЫ,0),2) -> Б/О | AE19: ДУБ, Б/О,
O20: 0 | P20: =INDEX('@'!V3:Z34,MATCH(AD20,'@'!V3:V34,0),T48) ->  | Q20: =INDEX('@'!P3:T210,MATCH(AE20,'@'!P3:P210,0),T48) ->  | U20: 0 | V20: 0 | W20: 0 | X20: 0 | Y20: =INDEX('@'!B3:F28,MATCH(B20,ПЛИТА_ТИП,0),5) ->  | AA20: =INDEX('@'!B3:F28,MATCH(B20,ПЛИТА_ТИП,0),4) ->  | AB20: =INDEX('@'!J3:K6,MATCH(A11,ШПОН_ДЕРЕВО,0),2) -> ДУБ | AC20: =INDEX('@'!J8:K18,MATCH(A13,ОТДЕЛКА_ДЕКОРЫ,0),2) -> Б/О | AE20: ДУБ, Б/О,
O21: 0 | P21: =INDEX('@'!V3:Z34,MATCH(AD21,'@'!V3:V34,0),T48) ->  | Q21: =INDEX('@'!P3:T210,MATCH(AE21,'@'!P3:P210,0),T48) ->  | U21: 0 | V21: 0 | W21: 0 | X21: 0 | Y21: =INDEX('@'!B3:F28,MATCH(B21,ПЛИТА_ТИП,0),5) ->  | AA21: =INDEX('@'!B3:F28,MATCH(B21,ПЛИТА_ТИП,0),4) ->  | AB21: =INDEX('@'!J3:K6,MATCH(A11,ШПОН_ДЕРЕВО,0),2) -> ДУБ | AC21: =INDEX('@'!J8:K18,MATCH(A13,ОТДЕЛКА_ДЕКОРЫ,0),2) -> Б/О | AE21: ДУБ, Б/О,
O22: 0 | P22: =INDEX('@'!V3:Z34,MATCH(AD22,'@'!V3:V34,0),T48) ->  | Q22: =INDEX('@'!P3:T210,MATCH(AE22,'@'!P3:P210,0),T48) ->  | U22: 0 | V22: 0 | W22: 0 | X22: 0 | Y22: =INDEX('@'!B3:F28,MATCH(B22,ПЛИТА_ТИП,0),5) ->  | AA22: =INDEX('@'!B3:F28,MATCH(B22,ПЛИТА_ТИП,0),4) ->  | AB22: =INDEX('@'!J3:K6,MATCH(A11,ШПОН_ДЕРЕВО,0),2) -> ДУБ | AC22: =INDEX('@'!J8:K18,MATCH(A13,ОТДЕЛКА_ДЕКОРЫ,0),2) -> Б/О | AE22: ДУБ, Б/О,
O23: 0 | P23: =INDEX('@'!V3:Z34,MATCH(AD23,'@'!V3:V34,0),T48) ->  | Q23: =INDEX('@'!P3:T210,MATCH(AE23,'@'!P3:P210,0),T48) ->  | U23: 0 | V23: 0 | W23: 0 | X23: 0 | Y23: =INDEX('@'!B3:F28,MATCH(B23,ПЛИТА_ТИП,0),5) ->  | AA23: =INDEX('@'!B3:F28,MATCH(B23,ПЛИТА_ТИП,0),4) ->  | AB23: =INDEX('@'!J3:K6,MATCH(A11,ШПОН_ДЕРЕВО,0),2) -> ДУБ | AC23: =INDEX('@'!J8:K18,MATCH(A13,ОТДЕЛКА_ДЕКОРЫ,0),2) -> Б/О | AE23: ДУБ, Б/О,
O24: =IF(B24<>"",1,0) -> 0 | P24: =INDEX('@'!V3:Z34,MATCH(AD24,'@'!V3:V34,0),T48) ->  | Q24: =INDEX('@'!P3:T210,MATCH(AE24,'@'!P3:P210,0),T48) ->  | U24: 0 | V24: 0 | W24: 0 | X24: 0 | Y24: =INDEX('@'!B3:F28,MATCH(B24,ПЛИТА_ТИП,0),5) ->  | AA24: =INDEX('@'!B3:F28,MATCH(B24,ПЛИТА_ТИП,0),4) ->  | AB24: =INDEX('@'!J3:K6,MATCH(A11,ШПОН_ДЕРЕВО,0),2) -> ДУБ | AC24: =INDEX('@'!J8:K18,MATCH(A13,ОТДЕЛКА_ДЕКОРЫ,0),2) -> Б/О | AE24: ДУБ, Б/О,
O25: 0 | P25: =INDEX('@'!V3:Z34,MATCH(AD25,'@'!V3:V34,0),T48) ->  | Q25: =INDEX('@'!P3:T210,MATCH(AE25,'@'!P3:P210,0),T48) ->  | U25: 0 | V25: 0 | W25: 0 | X25: 0 | Y25: =INDEX('@'!B3:F28,MATCH(B25,ПЛИТА_ТИП,0),5) ->  | AA25: =INDEX('@'!B3:F28,MATCH(B25,ПЛИТА_ТИП,0),4) ->  | AB25: =INDEX('@'!J3:K6,MATCH(A11,ШПОН_ДЕРЕВО,0),2) -> ДУБ | AC25: =INDEX('@'!J8:K18,MATCH(A13,ОТДЕЛКА_ДЕКОРЫ,0),2) -> Б/О | AE25: ДУБ, Б/О,
O26: 0 | P26: =INDEX('@'!V3:Z34,MATCH(AD26,'@'!V3:V34,0),T48) ->  | Q26: =INDEX('@'!P3:T210,MATCH(AE26,'@'!P3:P210,0),T48) ->  | U26: 0 | V26: 0 | W26: 0 | X26: 0 | Y26: =INDEX('@'!B3:F28,MATCH(B26,ПЛИТА_ТИП,0),5) ->  | AA26: =INDEX('@'!B3:F28,MATCH(B26,ПЛИТА_ТИП,0),4) ->  | AB26: =INDEX('@'!J3:K6,MATCH(A11,ШПОН_ДЕРЕВО,0),2) -> ДУБ | AC26: =INDEX('@'!J8:K18,MATCH(A13,ОТДЕЛКА_ДЕКОРЫ,0),2) -> Б/О | AE26: ДУБ, Б/О,
O27: 0 | P27: =INDEX('@'!V3:Z34,MATCH(AD27,'@'!V3:V34,0),T48) ->  | Q27: =INDEX('@'!P3:T210,MATCH(AE27,'@'!P3:P210,0),T48) ->  | U27: 0 | V27: 0 | W27: 0 | X27: 0 | Y27: =INDEX('@'!B3:F28,MATCH(B27,ПЛИТА_ТИП,0),5) ->  | AA27: =INDEX('@'!B3:F28,MATCH(B27,ПЛИТА_ТИП,0),4) ->  | AB27: =INDEX('@'!J3:K6,MATCH(A11,ШПОН_ДЕРЕВО,0),2) -> ДУБ | AC27: =INDEX('@'!J8:K18,MATCH(A13,ОТДЕЛКА_ДЕКОРЫ,0),2) -> Б/О | AE27: ДУБ, Б/О,
O28: 0 | P28: =INDEX('@'!V3:Z34,MATCH(AD28,'@'!V3:V34,0),T48) ->  | Q28: =INDEX('@'!P3:T210,MATCH(AE28,'@'!P3:P210,0),T48) ->  | U28: 0 | V28: 0 | W28: 0 | X28: 0 | Y28: =INDEX('@'!B3:F28,MATCH(B28,ПЛИТА_ТИП,0),5) ->  | AA28: =INDEX('@'!B3:F28,MATCH(B28,ПЛИТА_ТИП,0),4) ->  | AB28: =INDEX('@'!J3:K6,MATCH(A11,ШПОН_ДЕРЕВО,0),2) -> ДУБ | AC28: =INDEX('@'!J8:K18,MATCH(A13,ОТДЕЛКА_ДЕКОРЫ,0),2) -> Б/О | AE28: ДУБ, Б/О,
O29: 0 | P29: =INDEX('@'!V3:Z34,MATCH(AD29,'@'!V3:V34,0),T48) ->  | Q29: =INDEX('@'!P3:T210,MATCH(AE29,'@'!P3:P210,0),T48) ->  | U29: 0 | V29: 0 | W29: 0 | X29: 0 | Y29: =INDEX('@'!B3:F28,MATCH(B29,ПЛИТА_ТИП,0),5) ->  | AA29: =INDEX('@'!B3:F28,MATCH(B29,ПЛИТА_ТИП,0),4) ->  | AB29: =INDEX('@'!J3:K6,MATCH(A11,ШПОН_ДЕРЕВО,0),2) -> ДУБ | AC29: =INDEX('@'!J8:K18,MATCH(A13,ОТДЕЛКА_ДЕКОРЫ,0),2) -> Б/О | AE29: ДУБ, Б/О,
O30: 0 | P30: =INDEX('@'!V3:Z34,MATCH(AD30,'@'!V3:V34,0),T48) ->  | Q30: =INDEX('@'!P3:T210,MATCH(AE30,'@'!P3:P210,0),T48) ->  | U30: 0 | V30: 0 | W30: 0 | X30: 0 | Y30: =INDEX('@'!B3:F28,MATCH(B30,ПЛИТА_ТИП,0),5) ->  | AA30: =INDEX('@'!B3:F28,MATCH(B30,ПЛИТА_ТИП,0),4) ->  | AB30: =INDEX('@'!J3:K6,MATCH(A11,ШПОН_ДЕРЕВО,0),2) -> ДУБ | AC30: =INDEX('@'!J8:K18,MATCH(A13,ОТДЕЛКА_ДЕКОРЫ,0),2) -> Б/О | AE30: ДУБ, Б/О,
O31: 0 | P31: =INDEX('@'!V3:Z34,MATCH(AD31,'@'!V3:V34,0),T48) ->  | Q31: =INDEX('@'!P3:T210,MATCH(AE31,'@'!P3:P210,0),T48) ->  | U31: 0 | V31: 0 | W31: 0 | X31: 0 | Y31: =INDEX('@'!B3:F28,MATCH(B31,ПЛИТА_ТИП,0),5) ->  | AA31: =INDEX('@'!B3:F28,MATCH(B31,ПЛИТА_ТИП,0),4) ->  | AB31: =INDEX('@'!J3:K6,MATCH(A11,ШПОН_ДЕРЕВО,0),2) -> ДУБ | AC31: =INDEX('@'!J8:K18,MATCH(A13,ОТДЕЛКА_ДЕКОРЫ,0),2) -> Б/О | AE31: ДУБ, Б/О,
O32: 0 | P32: =INDEX('@'!V3:Z34,MATCH(AD32,'@'!V3:V34,0),T48) ->  | Q32: =INDEX('@'!P3:T210,MATCH(AE32,'@'!P3:P210,0),T48) ->  | U32: 0 | V32: 0 | W32: 0 | X32: 0 | Y32: =INDEX('@'!B3:F28,MATCH(B32,ПЛИТА_ТИП,0),5) ->  | AA32: =INDEX('@'!B3:F28,MATCH(B32,ПЛИТА_ТИП,0),4) ->  | AB32: =INDEX('@'!J3:K6,MATCH(A11,ШПОН_ДЕРЕВО,0),2) -> ДУБ | AC32: =INDEX('@'!J8:K18,MATCH(A13,ОТДЕЛКА_ДЕКОРЫ,0),2) -> Б/О | AE32: ДУБ, Б/О,
O33: 0 | P33: =INDEX('@'!V3:Z34,MATCH(AD33,'@'!V3:V34,0),T48) ->  | Q33: =INDEX('@'!P3:T210,MATCH(AE33,'@'!P3:P210,0),T48) ->  | U33: 0 | V33: 0 | W33: 0 | X33: 0 | Y33: =INDEX('@'!B3:F28,MATCH(B33,ПЛИТА_ТИП,0),5) ->  | AA33: =INDEX('@'!B3:F28,MATCH(B33,ПЛИТА_ТИП,0),4) ->  | AB33: =INDEX('@'!J3:K6,MATCH(A11,ШПОН_ДЕРЕВО,0),2) -> ДУБ | AC33: =INDEX('@'!J8:K18,MATCH(A13,ОТДЕЛКА_ДЕКОРЫ,0),2) -> Б/О | AE33: ДУБ, Б/О,
O34: 0 | P34: =INDEX('@'!V3:Z34,MATCH(AD34,'@'!V3:V34,0),T48) ->  | Q34: =INDEX('@'!P3:T210,MATCH(AE34,'@'!P3:P210,0),T48) ->  | U34: 0 | V34: 0 | W34: 0 | X34: 0 | Y34: =INDEX('@'!B3:F28,MATCH(B34,ПЛИТА_ТИП,0),5) ->  | AA34: =INDEX('@'!B3:F28,MATCH(B34,ПЛИТА_ТИП,0),4) ->  | AB34: =INDEX('@'!J3:K6,MATCH(A11,ШПОН_ДЕРЕВО,0),2) -> ДУБ | AC34: =INDEX('@'!J8:K18,MATCH(A13,ОТДЕЛКА_ДЕКОРЫ,0),2) -> Б/О | AE34: ДУБ, Б/О,
O35: 0 | P35: =INDEX('@'!V3:Z34,MATCH(AD35,'@'!V3:V34,0),T48) ->  | Q35: =INDEX('@'!P3:T210,MATCH(AE35,'@'!P3:P210,0),T48) ->  | U35: 0 | V35: 0 | W35: 0 | X35: 0 | Y35: =INDEX('@'!B3:F28,MATCH(B35,ПЛИТА_ТИП,0),5) ->  | AA35: =INDEX('@'!B3:F28,MATCH(B35,ПЛИТА_ТИП,0),4) ->  | AB35: =INDEX('@'!J3:K6,MATCH(A11,ШПОН_ДЕРЕВО,0),2) -> ДУБ | AC35: =INDEX('@'!J8:K18,MATCH(A13,ОТДЕЛКА_ДЕКОРЫ,0),2) -> Б/О | AE35: ДУБ, Б/О,
O36: 0 | P36: =INDEX('@'!V3:Z34,MATCH(AD36,'@'!V3:V34,0),T48) ->  | Q36: =INDEX('@'!P3:T210,MATCH(AE36,'@'!P3:P210,0),T48) ->  | U36: 0 | V36: 0 | W36: 0 | X36: 0 | Y36: =INDEX('@'!B3:F28,MATCH(B36,ПЛИТА_ТИП,0),5) ->  | AA36: =INDEX('@'!B3:F28,MATCH(B36,ПЛИТА_ТИП,0),4) ->  | AB36: =INDEX('@'!J3:K6,MATCH(A11,ШПОН_ДЕРЕВО,0),2) -> ДУБ | AC36: =INDEX('@'!J8:K18,MATCH(A13,ОТДЕЛКА_ДЕКОРЫ,0),2) -> Б/О | AE36: ДУБ, Б/О,
O37: 0 | P37: =INDEX('@'!V3:Z34,MATCH(AD37,'@'!V3:V34,0),T48) ->  | Q37: =INDEX('@'!P3:T210,MATCH(AE37,'@'!P3:P210,0),T48) ->  | U37: 0 | V37: 0 | W37: 0 | X37: 0 | Y37: =INDEX('@'!B3:F28,MATCH(B37,ПЛИТА_ТИП,0),5) ->  | AA37: =INDEX('@'!B3:F28,MATCH(B37,ПЛИТА_ТИП,0),4) ->  | AB37: =INDEX('@'!J3:K6,MATCH(A11,ШПОН_ДЕРЕВО,0),2) -> ДУБ | AC37: =INDEX('@'!J8:K18,MATCH(A13,ОТДЕЛКА_ДЕКОРЫ,0),2) -> Б/О | AE37: ДУБ, Б/О,
O38: 0 | P38: =INDEX('@'!V3:Z34,MATCH(AD38,'@'!V3:V34,0),T48) ->  | Q38: =INDEX('@'!P3:T210,MATCH(AE38,'@'!P3:P210,0),T48) ->  | U38: 0 | V38: 0 | W38: 0 | X38: 0 | Y38: =INDEX('@'!B3:F28,MATCH(B38,ПЛИТА_ТИП,0),5) ->  | AA38: =INDEX('@'!B3:F28,MATCH(B38,ПЛИТА_ТИП,0),4) ->  | AB38: =INDEX('@'!J3:K6,MATCH(A11,ШПОН_ДЕРЕВО,0),2) -> ДУБ | AC38: =INDEX('@'!J8:K18,MATCH(A13,ОТДЕЛКА_ДЕКОРЫ,0),2) -> Б/О | AE38: ДУБ, Б/О,
O39: 0 | P39: =INDEX('@'!V3:Z34,MATCH(AD39,'@'!V3:V34,0),T48) ->  | Q39: =INDEX('@'!P3:T210,MATCH(AE39,'@'!P3:P210,0),T48) ->  | U39: 0 | V39: 0 | W39: 0 | X39: 0 | Y39: =INDEX('@'!B3:F28,MATCH(B39,ПЛИТА_ТИП,0),5) ->  | AA39: =INDEX('@'!B3:F28,MATCH(B39,ПЛИТА_ТИП,0),4) ->  | AB39: =INDEX('@'!J3:K6,MATCH(A11,ШПОН_ДЕРЕВО,0),2) -> ДУБ | AC39: =INDEX('@'!J8:K18,MATCH(A13,ОТДЕЛКА_ДЕКОРЫ,0),2) -> Б/О | AE39: ДУБ, Б/О,
O40: 0 | P40: =INDEX('@'!V3:Z34,MATCH(AD40,'@'!V3:V34,0),T48) ->  | Q40: =INDEX('@'!P3:T210,MATCH(AE40,'@'!P3:P210,0),T48) ->  | U40: 0 | V40: 0 | W40: 0 | X40: 0 | Y40: =INDEX('@'!B3:F28,MATCH(B40,ПЛИТА_ТИП,0),5) ->  | AA40: =INDEX('@'!B3:F28,MATCH(B40,ПЛИТА_ТИП,0),4) ->  | AB40: =INDEX('@'!J3:K6,MATCH(A11,ШПОН_ДЕРЕВО,0),2) -> ДУБ | AC40: =INDEX('@'!J8:K18,MATCH(A13,ОТДЕЛКА_ДЕКОРЫ,0),2) -> Б/О | AE40: ДУБ, Б/О,
O41: 0 | P41: =INDEX('@'!V3:Z34,MATCH(AD41,'@'!V3:V34,0),T48) ->  | Q41: =INDEX('@'!P3:T210,MATCH(AE41,'@'!P3:P210,0),T48) ->  | U41: 0 | V41: 0 | W41: 0 | X41: 0 | Y41: =INDEX('@'!B3:F28,MATCH(B41,ПЛИТА_ТИП,0),5) ->  | AA41: =INDEX('@'!B3:F28,MATCH(B41,ПЛИТА_ТИП,0),4) ->  | AB41: =INDEX('@'!J3:K6,MATCH(A11,ШПОН_ДЕРЕВО,0),2) -> ДУБ | AC41: =INDEX('@'!J8:K18,MATCH(A13,ОТДЕЛКА_ДЕКОРЫ,0),2) -> Б/О | AE41: ДУБ, Б/О,
J42: ОБЩАЯ СТОИМОСТЬ : | M42: =IF(T42>0,T42,"") ->  | R42: СТОИМОСТЬ ЗАКАЗА : | T42: =SUM(M17:M41) -> 0
E43: ВСЕГО ДЕТАЛЕЙ : | H43: =IF(T45>0,T45,"") ->  | I43: шт. | J43: СКИДКА : | M43: =IF(T42>0,T43,"") ->  | R43: СКИДКА : | T43: =ROUNDUP(T42*L43,2) -> 0
E44: ОБЩАЯ ПЛОЩАДЬ : | H44: =IF(T46>0,T46,"") ->  | I44: м.кв. | J44: ВСЕГО К ОПЛАТЕ : | M44: =IF(T44>0,T44,"") ->  | R44: ВСЕГО К ОПЛАТЕ : | T44: =T42-T43 -> 0
E45: ОБЩИЙ ВЕС : | H45: =IF(T47>0,T47,"") ->  | I45: кг | J45: ВАЛЮТА : | M45: USD | R45: ОБЩЕЕ КОЛИЧЕСТВО : | T45: =SUM(L17:L41) -> 0
R46: ОБЩАЯ ПЛОЩАДЬ : | T46: =SUM(I17:I41) -> 0
R47: ОБЩИЙ ВЕС : | T47: =SUM(J17:J41) -> 0
R48: КОЛОНКА ВАЛЮТЫ : | T48: =INDEX('@'!AB3:AC4,MATCH(M45,ВАЛЮТА,0),2) -> 5
E49: ="ИСХОДНЫЕ ДАННЫЕ : ПРАЙС ЛИСТ, РОЗНИЧНЫЕ ЦЕНЫ ("&M45&") — "&РЕДАКЦИЯ -> ИСХОДНЫЕ ДАННЫЕ : ПРАЙС ЛИСТ, РОЗНИЧНЫЕ ЦЕНЫ (USD) — РЕДАКЦИЯ : 15.02.2018

Sheet ЗАКАЗ—UAH
C1: ЗАКАЗ НА ИЗГОТОВЛЕНИЕ ШПОНИРОВАННЫХ ДЕТАЛЕЙ
C3: ЗАКАЗЧИК : | K3: ДАТА ОФОРМЛЕНИЯ ЗАКАЗА :
C4: Мебельная фабрика "DesignProject" | K4: 15.02.2018
C5: АДРЕС :
C6: г. Киев, просп. Шевченко, 32 | K6: НОМЕР ЗАКАЗА :
C7: ТЕЛЕФОН, E-MAIL : | K7: зак. ###, (1/3)
C8: тел. 096-238-53-28, designprojectr@mail.com
A10: ДРЕВЕСНАЯ ПОРОДА ШПОНА : | E10: ДОПОЛНИТЕЛЬНЫЕ ТЕХНИЧЕСКИЕ ТРЕБОВАНИЯ :
A11: ДУБ (тангентальный) | E11: Текстуру шпона по внешним сторонам деталей поз.3, 4, 5, совместить согласно чертежам. Чертежи и схемы расположения деталей в приложении кзаказу.
A12: ВИД ОТДЕЛКИ И ДЕКОР :
A13: БЕЗ ОТДЕЛКИ
U14: КОЛ. СТОРОН | W14: М.П. | X14: М.КВ.
A15: № | B15: МАТЕРИАЛ И ТОЛЩ. ПЛИТЫ С ВАРИАНТОМ ОБЛИЦОВКИ | C15: ДЛИНЫ СТОРОН | E15: КРОМКОВАНИЕ | G15: ПЛОЩ. И МАССА ДЕТАЛИ | I15: ОБЩ. ПЛОЩ. И МАССА | K15: ЦЕНА ДЕТ. | L15: КОЛ. | M15: СТОИМОСТЬ | O15: ИНДЕКС ПЛИТЫ | P15: ЦЕНА КРОМКИ [вал./м.] | Q15: ЦЕНА ПЛИТЫ [вал./м.п.] | R15: СТОИМОСТЬ КРОМКИ [вал.] | S15: СТОИМОСТЬ ПЛИТЫ [вал.] | T15: СТОИМОСТЬ ДЕТАЛИ [вал.] | U15: КРОМКОВАНИЕ | W15: ПЕРИМЕТР | X15: ПЛОЩАДЬ | Y15: ВЕС ПЛИТЫ [кг/м.кв.] | Z15: ВЕС ДЕТАЛИ | AA15: КРОМКА | AB15: ШПОН | AC15: ОТДЕЛКА | AD15: КРОМКА+ОТДЕЛКА | AE15: ШПОН+ОТДЕЛКА+МАТЕРИАЛ И ТОЛЩ. ПЛИТЫ С ВАРИАНТОМ ОБЛИЦОВКИ
C16: X, мм | D16: Y, мм | E16: кол. X | F16: кол. Y | G16: м.кв. | H16: кг | I16: м.кв. | J16: кг | K16: =M45 -> UAH | L16: шт. | M16: =M45 -> UAH | U16: KX | V16: KY | W16: X×KX+Y×KY | X16: X×Y | Z16: КГ
G17: =IF(X17>0,X17," ") ->  | H17: =IF(C17*D17*O17>0,Z17," ") ->  | I17: =IF(X17*L17>0,X17*L17,"") ->  | J17: =IF(C17*D17*O17*L17>0,H17*L17," ") ->  | K17: =IF(C17*D17*O17>0,ROUNDUP(T17,2)," ") ->  | M17: =IF(C17*D17*L17*O17>0,K17*L17," ") ->  | O17: =IF(B17<>"",1,0) -> 0 | P17: =INDEX('@'!V3:Z34,MATCH(AD17,'@'!V3:V34,0),T48) ->  | Q17: =INDEX('@'!P3:T210,MATCH(AE17,'@'!P3:P210,0),T48) ->  | R17: =P17*W17*M46 ->  | S17: =Q17*X17*M46 ->  | T17: =ROUNDUP(R17+S17,0) ->  | U17: =IF(E17="",0,IF(E17=КРОМКА_A0,0,IF(E17=КРОМКА_A1,1,IF(E17=КРОМКА_A2,2)))) -> 0 | V17: =IF(F17="",0,IF(F17=КРОМКА_B0,0,IF(F17=КРОМКА_B1,1,IF(F17=КРОМКА_B2,2)))) -> 0 | W17: =(C17*U17+D17*V17)/1000 -> 0 | X17: =C17*D17/1000000 -> 0 | Y17: =INDEX('@'!B3:F28,MATCH(B17,ПЛИТА_ТИП,0),5) ->  | Z17: =IF(Y17*X17<>0,Y17*X17,0) ->  | AA17: =INDEX('@'!B3:F28,MATCH(B17,ПЛИТА_ТИП,0),4) ->  | AB17: =INDEX('@'!J3:K6,MATCH(A11,ШПОН_ДЕРЕВО,0),2) -> ДУБ | AC17: =INDEX('@'!J8:K18,MATCH(A13,ОТДЕЛКА_ДЕКОРЫ,0),2) -> Б/О | AD17: =AB17&" "&AA17&", "&AC17 ->  | AE17: =AB17&", "&AC17&", "&B17 -> ДУБ, Б/О,
G18: =IF(X18>0,X18," ") ->  | H18: =IF(C18*D18*O18>0,Z18," ") ->  | I18: =IF(X18*L18>0,X18*L18,"") ->  | J18: =IF(C18*D18*O18*L18>0,H18*L18," ") ->  | K18: =IF(C18*D18*O18>0,ROUNDUP(T18,2)," ") ->  | O18: 0 | P18: =INDEX('@'!V3:Z34,MATCH(AD18,'@'!V3:V34,0),T48) ->  | Q18: =INDEX('@'!P3:T210,MATCH(AE18,'@'!P3:P210,0),T48) ->  | R18: =P18*W18*M46 ->  | S18: =Q18*X18*M46 ->  | T18: =ROUNDUP(R18+S18,0) ->  | U18: 0 | V18: 0 | W18: =(C18*U18+D18*V18)/1000 -> 0 | X18: =C18*D18/1000000 -> 0 | Y18: =INDEX('@'!B3:F28,MATCH(B18,ПЛИТА_ТИП,0),5) ->  | Z18: =IF(Y18*X18<>0,Y18*X18,0) ->  | AA18: =INDEX('@'!B3:F28,MATCH(B18,ПЛИТА_ТИП,0),4) ->  | AB18: =INDEX('@'!J3:K6,MATCH(A11,ШПОН_ДЕРЕВО,0),2) -> ДУБ | AC18: =INDEX('@'!J8:K18,MATCH(A13,ОТДЕЛКА_ДЕКОРЫ,0),2) -> Б/О | AD18: =AB18&" "&AA18&", "&AC18 ->  | AE18: ДУБ, Б/О,
O19: 0 | P19: =INDEX('@'!V3:Z34,MATCH(AD19,'@'!V3:V34,0),T48) ->  | Q19: =INDEX('@'!P3:T210,MATCH(AE19,'@'!P3:P210,0),T48) ->  | R19: =P19*W19*M46 ->  | S19: =Q19*X19*M46 ->  | U19: 0 | V19: 0 | W19: 0 | X19: 0 | Y19: =INDEX('@'!B3:F28,MATCH(B19,ПЛИТА_ТИП,0),5) ->  | AA19: =INDEX('@'!B3:F28,MATCH(B19,ПЛИТА_ТИП,0),4) ->  | AB19: =INDEX('@'!J3:K6,MATCH(A11,ШПОН_ДЕРЕВО,0),2) -> ДУБ | AC19: =INDEX('@'!J8:K18,MATCH(A13,ОТДЕЛКА_ДЕКОРЫ,0),2) -> Б/О | AE19: ДУБ, Б/О,
O20: 0 | P20: =INDEX('@'!V3:Z34,MATCH(AD20,'@'!V3:V34,0),T48) ->  | Q20: =INDEX('@'!P3:T210,MATCH(AE20,'@'!P3:P210,0),T48) ->  | R20: =P20*W20*M46 ->  | S20: =Q20*X20*M46 ->  | U20: 0 | V20: 0 | W20: 0 | X20: 0 | Y20: =INDEX('@'!B3:F28,MATCH(B20,ПЛИТА_ТИП,0),5) ->  | AA20: =INDEX('@'!B3:F28,MATCH(B20,ПЛИТА_ТИП,0),4) ->  | AB20: =INDEX('@'!J3:K6,MATCH(A11,ШПОН_ДЕРЕВО,0),2) -> ДУБ | AC20: =INDEX('@'!J8:K18,MATCH(A13,ОТДЕЛКА_ДЕКОРЫ,0),2) -> Б/О | AE20: ДУБ, Б/О,
O21: 0 | P21: =INDEX('@'!V3:Z34,MATCH(AD21,'@'!V3:V34,0),T48) ->  | Q21: =INDEX('@'!P3:T210,MATCH(AE21,'@'!P3:P210,0),T48) ->  | R21: =P21*W21*M46 ->  | S21: =Q21*X21*M46 ->  | U21: 0 | V21: 0 | W21: 0 | X21: 0 | Y21: =INDEX('@'!B3:F28,MATCH(B21,ПЛИТА_ТИП,0),5) ->  | AA21: =INDEX('@'!B3:F28,MATCH(B21,ПЛИТА_ТИП,0),4) ->  | AB21: =INDEX('@'!J3:K6,MATCH(A11,ШПОН_ДЕРЕВО,0),2) -> ДУБ | AC21: =INDEX('@'!J8:K18,MATCH(A13,ОТДЕЛКА_ДЕКОРЫ,0),2) -> Б/О | AE21: ДУБ, Б/О,
O22: 0 | P22: =INDEX('@'!V3:Z34,MATCH(AD22,'@'!V3:V34,0),T48) ->  | Q22: =INDEX('@'!P3:T210,MATCH(AE22,'@'!P3:P210,0),T48) ->  | R22: =P22*W22*M46 ->  | S22: =Q22*X22*M46 ->  | U22: 0 | V22: 0 | W22: 0 | X22: 0 | Y22: =INDEX('@'!B3:F28,MATCH(B22,ПЛИТА_ТИП,0),5) ->  | AA22: =INDEX('@'!B3:F28,MATCH(B22,ПЛИТА_ТИП,0),4) ->  | AB22: =INDEX('@'!J3:K6,MATCH(A11,ШПОН_ДЕРЕВО,0),2) -> ДУБ | AC22: =INDEX('@'!J8:K18,MATCH(A13,ОТДЕЛКА_ДЕКОРЫ,0),2) -> Б/О | AE22: ДУБ, Б/О,
O23: 0 | P23: =INDEX('@'!V3:Z34,MATCH(AD23,'@'!V3:V34,0),T48) ->  | Q23: =INDEX('@'!P3:T210,MATCH(AE23,'@'!P3:P210,0),T48) ->  | R23: =P23*W23*M46 ->  | S23: =Q23*X23*M46 ->  | U23: 0 | V23: 0 | W23: 0 | X23: 0 | Y23: =INDEX('@'!B3:F28,MATCH(B23,ПЛИТА_ТИП,0),5) ->  | AA23: =INDEX('@'!B3:F28,MATCH(B23,ПЛИТА_ТИП,0),4) ->  | AB23: =INDEX('@'!J3:K6,MATCH(A11,ШПОН_ДЕРЕВО,0),2) -> ДУБ | AC23: =INDEX('@'!J8:K18,MATCH(A13,ОТДЕЛКА_ДЕКОРЫ,0),2) -> Б/О | AE23: ДУБ, Б/О,
O24: =IF(B24<>"",1,0) -> 0 | P24: =INDEX('@'!V3:Z34,MATCH(AD24,'@'!V3:V34,0),T48) ->  | Q24: =INDEX('@'!P3:T210,MATCH(AE24,'@'!P3:P210,0),T48) ->  | R24: =P24*W24*M46 ->  | S24: =Q24*X24*M46 ->  | U24: 0 | V24: 0 | W24: 0 | X24: 0 | Y24: =INDEX('@'!B3:F28,MATCH(B24,ПЛИТА_ТИП,0),5) ->  | AA24: =INDEX('@'!B3:F28,MATCH(B24,ПЛИТА_ТИП,0),4) ->  | AB24: =INDEX('@'!J3:K6,MATCH(A11,ШПОН_ДЕРЕВО,0),2) -> ДУБ | AC24: =INDEX('@'!J8:K18,MATCH(A13,ОТДЕЛКА_ДЕКОРЫ,0),2) -> Б/О | AE24: ДУБ, Б/О,
O25: 0 | P25: =INDEX('@'!V3:Z34,MATCH(AD25,'@'!V3:V34,0),T48) ->  | Q25: =INDEX('@'!P3:T210,MATCH(AE25,'@'!P3:P210,0),T48) ->  | R25: =P25*W25*M46 ->  | S25: =Q25*X25*M46 ->  | U25: 0 | V25: 0 | W25: 0 | X25: 0 | Y25: =INDEX('@'!B3:F28,MATCH(B25,ПЛИТА_ТИП,0),5) ->  | AA25: =INDEX('@'!B3:F28,MATCH(B25,ПЛИТА_ТИП,0),4) ->  | AB25: =INDEX('@'!J3:K6,MATCH(A11,ШПОН_ДЕРЕВО,0),2) -> ДУБ | AC25: =INDEX('@'!J8:K18,MATCH(A13,ОТДЕЛКА_ДЕКОРЫ,0),2) -> Б/О | AE25: ДУБ, Б/О,
O26: 0 | P26: =INDEX('@'!V3:Z34,MATCH(AD26,'@'!V3:V34,0),T48) ->  | Q26: =INDEX('@'!P3:T210,MATCH(AE26,'@'!P3:P210,0),T48) ->  | R26: =P26*W26*M46 ->  | S26: =Q26*X26*M46 ->  | U26: 0 | V26: 0 | W26: 0 | X26: 0 | Y26: =INDEX('@'!B3:F28,MATCH(B26,ПЛИТА_ТИП,0),5) ->  | AA26: =INDEX('@'!B3:F28,MATCH(B26,ПЛИТА_ТИП,0),4) ->  | AB26: =INDEX('@'!J3:K6,MATCH(A11,ШПОН_ДЕРЕВО,0),2) -> ДУБ | AC26: =INDEX('@'!J8:K18,MATCH(A13,ОТДЕЛКА_ДЕКОРЫ,0),2) -> Б/О | AE26: ДУБ, Б/О,
O27: 0 | P27: =INDEX('@'!V3:Z34,MATCH(AD27,'@'!V3:V34,0),T48) ->  | Q27: =INDEX('@'!P3:T210,MATCH(AE27,'@'!P3:P210,0),T48) ->  | R27: =P27*W27*M46 ->  | S27: =Q27*X27*M46 ->  | U27: 0 | V27: 0 | W27: 0 | X27: 0 | Y27: =INDEX('@'!B3:F28,MATCH(B27,ПЛИТА_ТИП,0),5) ->  | AA27: =INDEX('@'!B3:F28,MATCH(B27,ПЛИТА_ТИП,0),4) ->  | AB27: =INDEX('@'!J3:K6,MATCH(A11,ШПОН_ДЕРЕВО,0),2) -> ДУБ | AC27: =INDEX('@'!J8:K18,MATCH(A13,ОТДЕЛКА_ДЕКОРЫ,0),2) -> Б/О | AE27: ДУБ, Б/О,
O28: 0 | P28: =INDEX('@'!V3:Z34,MATCH(AD28,'@'!V3:V34,0),T48) ->  | Q28: =INDEX('@'!P3:T210,MATCH(AE28,'@'!P3:P210,0),T48) ->  | R28: =P28*W28*M46 ->  | S28: =Q28*X28*M46 ->  | U28: 0 | V28: 0 | W28: 0 | X28: 0 | Y28: =INDEX('@'!B3:F28,MATCH(B28,ПЛИТА_ТИП,0),5) ->  | AA28: =INDEX('@'!B3:F28,MATCH(B28,ПЛИТА_ТИП,0),4) ->  | AB28: =INDEX('@'!J3:K6,MATCH(A11,ШПОН_ДЕРЕВО,0),2) -> ДУБ | AC28: =INDEX('@'!J8:K18,MATCH(A13,ОТДЕЛКА_ДЕКОРЫ,0),2) -> Б/О | AE28: ДУБ, Б/О,
O29: 0 | P29: =INDEX('@'!V3:Z34,MATCH(AD29,'@'!V3:V34,0),T48) ->  | Q29: =INDEX('@'!P3:T210,MATCH(AE29,'@'!P3:P210,0),T48) ->  | R29: =P29*W29*M46 ->  | S29: =Q29*X29*M46 ->  | U29: 0 | V29: 0 | W29: 0 | X29: 0 | Y29: =INDEX('@'!B3:F28,MATCH(B29,ПЛИТА_ТИП,0),5) ->  | AA29: =INDEX('@'!B3:F28,MATCH(B29,ПЛИТА_ТИП,0),4) ->  | AB29: =INDEX('@'!J3:K6,MATCH(A11,ШПОН_ДЕРЕВО,0),2) -> ДУБ | AC29: =INDEX('@'!J8:K18,MATCH(A13,ОТДЕЛКА_ДЕКОРЫ,0),2) -> Б/О | AE29: ДУБ, Б/О,
O30: 0 | P30: =INDEX('@'!V3:Z34,MATCH(AD30,'@'!V3:V34,0),T48) ->  | Q30: =INDEX('@'!P3:T210,MATCH(AE30,'@'!P3:P210,0),T48) ->  | R30: =P30*W30*M46 ->  | S30: =Q30*X30*M46 ->  | U30: 0 | V30: 0 | W30: 0 | X30: 0 | Y30: =INDEX('@'!B3:F28,MATCH(B30,ПЛИТА_ТИП,0),5) ->  | AA30: =INDEX('@'!B3:F28,MATCH(B30,ПЛИТА_ТИП,0),4) ->  | AB30: =INDEX('@'!J3:K6,MATCH(A11,ШПОН_ДЕРЕВО,0),2) -> ДУБ | AC30: =INDEX('@'!J8:K18,MATCH(A13,ОТДЕЛКА_ДЕКОРЫ,0),2) -> Б/О | AE30: ДУБ, Б/О,
O31: 0 | P31: =INDEX('@'!V3:Z34,MATCH(AD31,'@'!V3:V34,0),T48) ->  | Q31: =INDEX('@'!P3:T210,MATCH(AE31,'@'!P3:P210,0),T48) ->  | R31: =P31*W31*M46 ->  | S31: =Q31*X31*M46 ->  | U31: 0 | V31: 0 | W31: 0 | X31: 0 | Y31: =INDEX('@'!B3:F28,MATCH(B31,ПЛИТА_ТИП,0),5) ->  | AA31: =INDEX('@'!B3:F28,MATCH(B31,ПЛИТА_ТИП,0),4) ->  | AB31: =INDEX('@'!J3:K6,MATCH(A11,ШПОН_ДЕРЕВО,0),2) -> ДУБ | AC31: =INDEX('@'!J8:K18,MATCH(A13,ОТДЕЛКА_ДЕКОРЫ,0),2) -> Б/О | AE31: ДУБ, Б/О,
O32: 0 | P32: =INDEX('@'!V3:Z34,MATCH(AD32,'@'!V3:V34,0),T48) ->  | Q32: =INDEX('@'!P3:T210,MATCH(AE32,'@'!P3:P210,0),T48) ->  | R32: =P32*W32*M46 ->  | S32: =Q32*X32*M46 ->  | U32: 0 | V32: 0 | W32: 0 | X32: 0 | Y32: =INDEX('@'!B3:F28,MATCH(B32,ПЛИТА_ТИП,0),5) ->  | AA32: =INDEX('@'!B3:F28,MATCH(B32,ПЛИТА_ТИП,0),4) ->  | AB32: =INDEX('@'!J3:K6,MATCH(A11,ШПОН_ДЕРЕВО,0),2) -> ДУБ | AC32: =INDEX('@'!J8:K18,MATCH(A13,ОТДЕЛКА_ДЕКОРЫ,0),2) -> Б/О | AE32: ДУБ, Б/О,
O33: 0 | P33: =INDEX('@'!V3:Z34,MATCH(AD33,'@'!V3:V34,0),T48) ->  | Q33: =INDEX('@'!P3:T210,MATCH(AE33,'@'!P3:P210,0),T48) ->  | R33: =P33*W33*M46 ->  | S33: =Q33*X33*M46 ->  | U33: 0 | V33: 0 | W33: 0 | X33: 0 | Y33: =INDEX('@'!B3:F28,MATCH(B33,ПЛИТА_ТИП,0),5) ->  | AA33: =INDEX('@'!B3:F28,MATCH(B33,ПЛИТА_ТИП,0),4) ->  | AB33: =INDEX('@'!J3:K6,MATCH(A11,ШПОН_ДЕРЕВО,0),2) -> ДУБ | AC33: =INDEX('@'!J8:K18,MATCH(A13,ОТДЕЛКА_ДЕКОРЫ,0),2) -> Б/О | AE33: ДУБ, Б/О,
O34: 0 | P34: =INDEX('@'!V3:Z34,MATCH(AD34,'@'!V3:V34,0),T48) ->  | Q34: =INDEX('@'!P3:T210,MATCH(AE34,'@'!P3:P210,0),T48) ->  | R34: =P34*W34*M46 ->  | S34: =Q34*X34*M46 ->  | U34: 0 | V34: 0 | W34: 0 | X34: 0 | Y34: =INDEX('@'!B3:F28,MATCH(B34,ПЛИТА_ТИП,0),5) ->  | AA34: =INDEX('@'!B3:F28,MATCH(B34,ПЛИТА_ТИП,0),4) ->  | AB34: =INDEX('@'!J3:K6,MATCH(A11,ШПОН_ДЕРЕВО,0),2) -> ДУБ | AC34: =INDEX('@'!J8:K18,MATCH(A13,ОТДЕЛКА_ДЕКОРЫ,0),2) -> Б/О | AE34: ДУБ, Б/О,
O35: 0 | P35: =INDEX('@'!V3:Z34,MATCH(AD35,'@'!V3:V34,0),T48) ->  | Q35: =INDEX('@'!P3:T210,MATCH(AE35,'@'!P3:P210,0),T48) ->  | R35: =P35*W35*M46 ->  | S35: =Q35*X35*M46 ->  | U35: 0 | V35: 0 | W35: 0 | X35: 0 | Y35: =INDEX('@'!B3:F28,MATCH(B35,ПЛИТА_ТИП,0),5) ->  | AA35: =INDEX('@'!B3:F28,MATCH(B35,ПЛИТА_ТИП,0),4) ->  | AB35: =INDEX('@'!J3:K6,MATCH(A11,ШПОН_ДЕРЕВО,0),2) -> ДУБ | AC35: =INDEX('@'!J8:K18,MATCH(A13,ОТДЕЛКА_ДЕКОРЫ,0),2) -> Б/О | AE35: ДУБ, Б/О,
O36: 0 | P36: =INDEX('@'!V3:Z34,MATCH(AD36,'@'!V3:V34,0),T48) ->  | Q36: =INDEX('@'!P3:T210,MATCH(AE36,'@'!P3:P210,0),T48) ->  | R36: =P36*W36*M46 ->  | S36: =Q36*X36*M46 ->  | U36: 0 | V36: 0 | W36: 0 | X36: 0 | Y36: =INDEX('@'!B3:F28,MATCH(B36,ПЛИТА_ТИП,0),5) ->  | AA36: =INDEX('@'!B3:F28,MATCH(B36,ПЛИТА_ТИП,0),4) ->  | AB36: =INDEX('@'!J3:K6,MATCH(A11,ШПОН_ДЕРЕВО,0),2) -> ДУБ | AC36: =INDEX('@'!J8:K18,MATCH(A13,ОТДЕЛКА_ДЕКОРЫ,0),2) -> Б/О | AE36: ДУБ, Б/О,
O37: 0 | P37: =INDEX('@'!V3:Z34,MATCH(AD37,'@'!V3:V34,0),T48) ->  | Q37: =INDEX('@'!P3:T210,MATCH(AE37,'@'!P3:P210,0),T48) ->  | R37: =P37*W37*M46 ->  | S37: =Q37*X37*M46 ->  | U37: 0 | V37: 0 | W37: 0 | X37: 0 | Y37: =INDEX('@'!B3:F28,MATCH(B37,ПЛИТА_ТИП,0),5) ->  | AA37: =INDEX('@'!B3:F28,MATCH(B37,ПЛИТА_ТИП,0),4) ->  | AB37: =INDEX('@'!J3:K6,MATCH(A11,ШПОН_ДЕРЕВО,0),2) -> ДУБ | AC37: =INDEX('@'!J8:K18,MATCH(A13,ОТДЕЛКА_ДЕКОРЫ,0),2) -> Б/О | AE37: ДУБ, Б/О,
O38: 0 | P38: =INDEX('@'!V3:Z34,MATCH(AD38,'@'!V3:V34,0),T48) ->  | Q38: =INDEX('@'!P3:T210,MATCH(AE38,'@'!P3:P210,0),T48) ->  | R38: =P38*W38*M46 ->  | S38: =Q38*X38*M46 ->  | U38: 0 | V38: 0 | W38: 0 | X38: 0 | Y38: =INDEX('@'!B3:F28,MATCH(B38,ПЛИТА_ТИП,0),5) ->  | AA38: =INDEX('@'!B3:F28,MATCH(B38,ПЛИТА_ТИП,0),4) ->  | AB38: =INDEX('@'!J3:K6,MATCH(A11,ШПОН_ДЕРЕВО,0),2) -> ДУБ | AC38: =INDEX('@'!J8:K18,MATCH(A13,ОТДЕЛКА_ДЕКОРЫ,0),2) -> Б/О | AE38: ДУБ, Б/О,
O39: 0 | P39: =INDEX('@'!V3:Z34,MATCH(AD39,'@'!V3:V34,0),T48) ->  | Q39: =INDEX('@'!P3:T210,MATCH(AE39,'@'!P3:P210,0),T48) ->  | R39: =P39*W39*M46 ->  | S39: =Q39*X39*M46 ->  | U39: 0 | V39: 0 | W39: 0 | X39: 0 | Y39: =INDEX('@'!B3:F28,MATCH(B39,ПЛИТА_ТИП,0),5) ->  | AA39: =INDEX('@'!B3:F28,MATCH(B39,ПЛИТА_ТИП,0),4) ->  | AB39: =INDEX('@'!J3:K6,MATCH(A11,ШПОН_ДЕРЕВО,0),2) -> ДУБ | AC39: =INDEX('@'!J8:K18,MATCH(A13,ОТДЕЛКА_ДЕКОРЫ,0),2) -> Б/О | AE39: ДУБ, Б/О,
O40: 0 | P40: =INDEX('@'!V3:Z34,MATCH(AD40,'@'!V3:V34,0),T48) ->  | Q40: =INDEX('@'!P3:T210,MATCH(AE40,'@'!P3:P210,0),T48) ->  | R40: =P40*W40*M46 ->  | S40: =Q40*X40*M46 ->  | U40: 0 | V40: 0 | W40: 0 | X40: 0 | Y40: =INDEX('@'!B3:F28,MATCH(B40,ПЛИТА_ТИП,0),5) ->  | AA40: =INDEX('@'!B3:F28,MATCH(B40,ПЛИТА_ТИП,0),4) ->  | AB40: =INDEX('@'!J3:K6,MATCH(A11,ШПОН_ДЕРЕВО,0),2) -> ДУБ | AC40: =INDEX('@'!J8:K18,MATCH(A13,ОТДЕЛКА_ДЕКОРЫ,0),2) -> Б/О | AE40: ДУБ, Б/О,
O41: 0 | P41: =INDEX('@'!V3:Z34,MATCH(AD41,'@'!V3:V34,0),T48) ->  | Q41: =INDEX('@'!P3:T210,MATCH(AE41,'@'!P3:P210,0),T48) ->  | R41: =P41*W41*M46 ->  | S41: =Q41*X41*M46 ->  | U41: 0 | V41: 0 | W41: 0 | X41: 0 | Y41: =INDEX('@'!B3:F28,MATCH(B41,ПЛИТА_ТИП,0),5) ->  | AA41: =INDEX('@'!B3:F28,MATCH(B41,ПЛИТА_ТИП,0),4) ->  | AB41: =INDEX('@'!J3:K6,MATCH(A11,ШПОН_ДЕРЕВО,0),2) -> ДУБ | AC41: =INDEX('@'!J8:K18,MATCH(A13,ОТДЕЛКА_ДЕКОРЫ,0),2) -> Б/О | AE41: ДУБ, Б/О,
J42: ОБЩАЯ СТОИМОСТЬ : | M42: =IF(T42>0,T42,"") ->  | R42: СТОИМОСТЬ ЗАКАЗА : | T42: =SUM(M17:M41) -> 0
E43: ВСЕГО ДЕТАЛЕЙ : | H43: =IF(T45>0,T45,"") ->  | I43: шт. | J43: СКИДКА : | M43: =IF(T42>0,T43,"") ->  | R43: СКИДКА : | T43: =ROUNDUP(T42*L43,0) -> 0
E44: ОБЩАЯ ПЛОЩАДЬ : | H44: =IF(T46>0,T46,"") ->  | I44: м.кв. | J44: ВСЕГО К ОПЛАТЕ : | M44: =IF(T44>0,T44,"") ->  | R44: ВСЕГО К ОПЛАТЕ : | T44: =T42-T43 -> 0
E45: ОБЩИЙ ВЕС : | H45: =IF(T47>0,T47,"") ->  | I45: кг | J45: ВАЛЮТА : | M45: UAH | R45: ОБЩЕЕ КОЛИЧЕСТВО : | T45: =SUM(L17:L41) -> 0
J46: КУРС UAH/EURO : | M46: 33.5 | R46: ОБЩАЯ ПЛОЩАДЬ : | T46: =SUM(I17:I41) -> 0
R47: ОБЩИЙ ВЕС : | T47: =SUM(J17:J41) -> 0
R48: КОЛОНКА ВАЛЮТЫ : | T48: 4
E49: ="ИСХОДНЫЕ ДАННЫЕ : ПРАЙС ЛИСТ, РОЗНИЧНЫЕ ЦЕНЫ ("&M45&") — "&РЕДАКЦИЯ -> ИСХОДНЫЕ ДАННЫЕ : ПРАЙС ЛИСТ, РОЗНИЧНЫЕ ЦЕНЫ (UAH) — РЕДАКЦИЯ : 15.02.2018
